{"text_format":"1","workbook":"xlsx","n_sheets":24,"sheets":["Cover Page","Contents","Facility Info","Operational Data","Operational Summary","Perf. Form 1","Energy Form 1","Permit Compliance","Improvements","Public Liasion","CO2 N2O","Residue Quality ","Water","Air (periodic)","Air (CEMS)","HCl","SO2","NOx","TOC","Particulates","CO 0.5 hourly","CO 95% 10 min","NH3","Template changes log"],"not_rendered":{"charts":8,"images":3,"macros":1,"external_links":0,"defined_names":24,"comments":0,"pivot_tables":0},"unopened":[],"bounds":{"document_bytes":16777216,"sheet_cells":100000,"rows_first":2000,"rows_last":500,"rows_between":2000,"halvings":0,"cell_chars":16384,"cell_head_chars":4096},"cells_cut":0,"cells_raw":0,"read":"whole","date_system":"1900"}

{"sheet":"Cover Page","index":0,"n_rows":53,"n_cols":14,"rows_kept":53,"cut":false,"hidden":false,"merged":[[48,2,48,3],[48,6,48,8],[52,2,52,3],[36,1,36,8],[40,2,40,8],[42,2,42,4],[44,2,44,4],[46,2,46,3],[46,6,46,8],[13,13,18,15],[34,1,34,8],[0,3,5,6],[7,1,23,8],[28,1,28,8],[30,1,30,8],[32,1,32,8]]}
[null,null,null,"Add company logo"]
[null,null,null,null,null,null,null,null,null,null,null,null,null,"Version 24.2a (for incinerators) - 27/11/24"]
[]
[null,null,null,null,null,null,null,null,null,null,null,null,null,"Note that there is another version of this template available for co-incinerators"]
[]
[]
[]
[null,"Add photo"]
[]
[]
[]
[]
[null,null,null,null,null,null,null,null,null,null,null,null,null,"Notes:"]
[null,null,null,null,null,null,null,null,null,null,null,null,null,"This template may require adjustments by individual operators to meet specific reporting requirements as defined in the site Permit(s)"]
[]
[]
[]
[]
[]
[]
[]
[]
[]
[]
[]
[]
[]
[]
[null,"Annual Performance Report 2024"]
[]
[null,"Permit EPR/HP3431HK"]
[]
[null,"Staffordshire Energy Recovery Facility"]
[]
[null,"other name of facility (if applicable)"]
[]
[null,"Veolia ES Staffordshire Limited"]
[]
[null,"Year:",2024]
[]
[null,"Address:","Enterprise Drive, Four Ashes, Woverhampton, Staffordshire, WV10 7DF"]
[]
[null,"Tel: ","0203 567 6300"]
[]
[null,"Email: ","christine.skaramaga@veolia.com"]
[]
[null,"Prepared by:","Christine Skaramaga",null,null,"Position:","Senior Environmental Engineer"]
[]
[null,"Approved by:","Matt Richardson",null,null,"Position:","Plant Manager"]
[]
[null,"Version:",1]
[]
[null,"Issue Date:","2025-01-31"]

{"sheet":"Contents","index":1,"n_rows":53,"n_cols":11,"rows_kept":53,"cut":false,"hidden":false,"merged":[[44,0,47,9],[37,1,37,6],[38,1,38,6],[39,1,39,6],[40,1,40,6],[41,1,41,6],[42,1,42,6],[36,1,36,6],[22,1,22,6],[23,1,23,6],[24,1,24,6],[27,1,27,6],[28,1,28,6],[29,1,29,6],[30,1,30,6],[31,1,31,6],[32,1,32,6],[35,1,35,6],[21,1,21,6],[9,1,9,6],[10,1,10,6],[11,1,11,6],[13,1,13,6],[14,1,14,6],[15,1,15,6],[16,1,16,6],[17,1,17,6],[18,1,18,6],[19,1,19,6],[20,1,20,6],[12,1,12,6],[4,10,7,14],[8,1,8,6],[3,1,3,6],[4,1,4,6],[5,1,5,6],[6,1,6,6],[7,1,7,6]]}
[{"$f":"+'Cover Page'!$B$29","v":"Annual Performance Report 2024"},null,null,null,{"$f":"+'Cover Page'!$B$33","v":"Staffordshire Energy Recovery Facility"}]
[]
["Contents",null,null,null,null,null,null,null,null,null,"Notes:"]
["Section","Subject",null,null,null,null,null,"Page ",null,null,"Section references and Page nos. to be inserted"]
[null,"Facility Information",null,null,null,null,null,3,null,null,"Sections and Subjects may require adjustment by individual operators to meet specific reporting requirements as defined in the sites Permit(s)"]
[null,"Operational Data",null,null,null,null,null,4]
[null,"Operational Summary",null,null,null,null,null,6]
[null,"Performance Form 1",null,null,null,null,null,7]
[null,"Energy Form 1",null,null,null,null,null,8]
[null,"Permit Compliance",null,null,null,null,null,9]
[null,"Improvements",null,null,null,null,null,10]
[null,"Public Liaison",null,null,null,null,null,11]
[null,"Carbon dioxide and nitrous oxide emissions",null,null,null,null,null,12]
[null,"Residue Quality ",null,null,null,null,null,14]
[null,"Emissions to Water",null,null,null,null,null,15]
[null,"Emissions to Air (periodically monitored)",null,null,null,null,null,16]
[null,"Emissions to Air (continuously monitored)",null,null,null,null,null,20]
[null,"Hydrogen Chloride emissions",null,null,null,null,null,22]
[null,"Sulphur Dioxide emissions",null,null,null,null,null,23]
[null,"Oxides of Nitrogen emissions",null,null,null,null,null,24]
[null,"Total Organic Carbon emissions",null,null,null,null,null,25]
[null,"Particulate Matter emissions",null,null,null,null,null,26]
[null,"Carbon Monoxide emissions",null,null,null,null,null,27]
[null,"Ammonia emissions",null,null,null,null,null,28]
[]
[]
["Version Control"]
["Section","Information",null,null,null,null,null,"Date"]
[]
[]
[]
[]
[]
[]
["Distribution"]
["Copy","Name, Role",null,null,null,null,null,"No."]
[1,"Iain Storer, EA Installations Team Leader",null,null,null,null,null,1]
[]
[]
[]
[]
[]
[]
[]
["This report is required under the Industrial Emissions Directive’s Article 55(2) requirements on reporting and public information on waste incineration plants and co-incineration plants, which require the operator to produce an annual report on the functioning and monitoring of the plant and make it available to the public. "]
[]
[]
[]
[]
[]
[]
[]
[null,null,"2025-01-31"]

{"sheet":"Facility Info","index":2,"n_rows":22,"n_cols":11,"rows_kept":22,"cut":false,"hidden":false,"merged":[[4,0,17,8],[21,0,53,8],[4,10,13,13],[21,10,30,13]]}
[{"$f":"+'Cover Page'!$B$29","v":"Annual Performance Report 2024"},null,null,null,{"$f":"+'Cover Page'!$B$33","v":"Staffordshire Energy Recovery Facility"}]
[]
["Plant Description and Design",null,null,null,null,null,null,null,null,null,"Notes:"]
[]
["The ERF is operated by Veolia ES Staffordshire Ltd, a wholly owned subsidiary of Veolia. The plant is designed to burn predominantly residual municipal solid waste and has a capacity to process up to 340,000 tonnes annually. The facility has been built to serve Staffordshire County Council, its eight constituent Councils and its other partner authorities.\nThe facility can generate approximately 29MW of electricity from waste. The facility uses 3.2MW and the balance is exported to the national grid. In tangible terms the electricity generated is equivalent to 66,000 homes. \nTechnical details of the plant:\n     - Construcions Industrielles de la Mediterranee (CNIM) - Design\n     - Maximum Permitted Refuse throughput – 340,000 tonnes per annum\n     - Storage capacity 4,500 tonnes - Approximately four and a half days full plant capacity\n     - Number of tipping bays - 5\n     - Steam output – 64.5 tonnes of steam per hour at 400degC at 60bar\n     - Flue gas treatment - CNIM ammonia injection for the reduction of NOx, dry lime injection for the\n       removal of acid gases, activated carbon injection for removal of metals and dioxins followed by\n       high performance bag filters for removal of particulates, dispersal via two 80 metre high stacks\n     - Maximum energy generating capacity 29MW\n\nThe ERF is regulated by the Environment Agency and is certified in compliance with:\n     - ISO 9001:2008\n     - ISO 14001:2004\n     - ISO 45001:2018",null,null,null,null,null,null,null,null,null,"Include summary of plant design, design capacity, no. of combustion lines, electrical and heat capacity and any other general information that describes the facility, its location and purpose "]
[]
[]
[]
[]
[]
[]
[]
[]
[]
[]
[]
[]
[]
[]
["Summary of Operational Processes and Procedures"]
[]
["All gaseous emissions generated during the combustion process pass through an extensive flue gas cleaning process which starts in the boiler directly above the furnace with injected ammonia to reduce the levels of oxides of nitrogen. After the boiler, super heater and economiser the gases are cooled to approximately 150 degrees Celsius. Activated carbon is added to remove metals and dioxins and lime is added to remove acidic gases such as SO2 and HCl. Most of this reaction occurs in the bag filters where particulates are removed and APCr is formed. There is recirculation of APC where the used lime and carbon is recirculated further to remove chlorinated gases via a recirculation silo. This secondary reactant is recirculated back to the original process via a lab loop. The cleaned gasses are finally released into the atmosphere through the chimney after the bag house. \nIn compliance with the IED and EPR Permit, the flue gasses are continuously monitored using MCertS accredited equipment. In addition to the continuous monitoring, and extractive sampling campaign is undertaken twice a year by an approved service supplier. The organisation used for analysis and monitoring is accredited by the United Kingdom Accreditation Service (UKAS) and the Environment Agency's Monitoring Certification Scheme (MCertS).\nThrough the process there is continuous emissions monitoring of six main pollutants with ELVs using MCertS approved instruments. The pollutants measured in this way comprise: particulate matter (total), total organic carbon, carbon monoxide, sulphur dioxide, hydrogen chloride, oxides of nitrogen and ammonia.\nStaffordshire ERF has an experienced Veolia management team from other existing plants. The plant has been designed using proven technology and experience and is performing well. The plant supports our company ethos, as we operate 10 facilities in the UK. Reliable environmental controls and a robust management system ensure that compliance with the Industrial Emissions Directive and EPR Permit.\nVeolia staff are aware of the environmental impacts of their work and exercise a high standard of housekeeping. Training and competency of staff is controlled by the Veolia Business Management System. The Management System covers training, awareness and competence. The company identifies the training requirements of its employees and provides suitable resources to ensure they have the required knowledge, skills and expertise to carry out their duties.\n",null,null,null,null,null,null,null,null,null,"Include summary of key processes and procedures such as (but not limited to); waste reception, control rooms, grate, bed and boiler, energy & heat  generation, cooling systems, residue management, emission controls, health and safety systems, maintenance"]

{"sheet":"Operational Data","index":3,"n_rows":65,"n_cols":10,"rows_kept":65,"cut":false,"hidden":false,"merged":[[5,9,7,9],[52,0,56,0],[33,1,38,1],[3,1,3,2],[7,1,19,1],[23,1,26,1],[28,1,29,1],[9,9,20,9],[21,9,25,9]]}
[{"$f":"+'Cover Page'!$B$29","v":"Annual Performance Report 2024"},null,null,null,{"$f":"+'Cover Page'!$B$33","v":"Staffordshire Energy Recovery Facility"}]
[]
["Operational Data"]
["Plant Size",340000,null,"tonnes pa",null,"MWth",29,"MWe",null,"Notes:"]
["No. of combustion lines",2,null,"No. of Turbines:",null,1,null,null,null,"* - RDF to include SRF "]
[null,null,null,null,null,null,null,null,null,"** - Combusted tonnage = tonnes delivered in period + (tonnes in bunker at start of period – tonnes in bunker at end of period), or equivalent calculation depending on plant type"]
["Waste types received","Unit","Q1","Q2","Q3","Q4","Year Total","%"]
["Household / Local Authority","tonnes",84684.02,82568.98,78720.38,75908.13,{"$f":"SUM(C8:F8)","v":321881.51},{"$f":"IF(G8>0,G8/$G$18,\"-\")","v":0.97851151610661979}]
["Commercial & Industrial ",null,null,null,null,null,{"$f":"SUM(C9:F9)","v":0},"-",null,"*** - CHP plants only"]
["Hazardous ",null,null,null,null,null,0,"-",null,"**** Availability Definition: 'the availability of a line is to be calculated by the number of hours the line reported Continuously Monitored emission levels to the Regulator through the calendar year divided by the total number of hours in that year. \n\nThe overall plant availability is calculated as the Mean of all lines in the plant. For clarity this includes periods of abnormal operation.'  \n\nRationale: The primary function of an Energy from Waste facility is the disposal of waste. It follows therefore that the availability of a plant is determined by the period of time a facility spends undertaking this activity."]
["Clinical",null,null,null,null,null,0,"-"]
["Waste wood (biomass) ",null,null,null,null,null,0,"-"]
["Refuse Derived Fuel * - H'hold/LA",null,423.44,1112.54,1754.6,3778.06,{"$f":"SUM(C13:F13)","v":7068.6399999999994},2.1488483893380195E-2]
["Refuse Derived Fuel *  - C&I",null,null,null,null,null,0,"-"]
["Other [Please specify]",null,null,null,null,null,0,"-"]
["Other [Please specify]",null,null,null,null,null,0,"-"]
["Other [Please specify]",null,null,null,null,null,0,"-"]
["Total waste received",null,{"$f":"SUM(C8:C17)","v":85107.46},{"$f":"SUM(D8:D17)","v":83681.51999999999},{"$f":"SUM(E8:E17)","v":80474.98000000001},{"$f":"SUM(F8:F17)","v":79686.19},328950.15000000002,{"$f":"IF(G18>0,G18/$G$18,\"-\")","v":1}]
["Rejected Waste ",null,null,null,null,null,{"$f":"SUM(C19:F19)","v":0},{"$f":"IF(G19>0,G19/$G$18,\"-\")","v":"-"}]
["Unprocessed waste transferred out",null,null,null,null,null,{"$f":"SUM(C20:F20)","v":0},{"$f":"IF(G20>0,G20/$G$18,\"-\")","v":"-"}]
["Total waste combusted **",null,87606,84442,80419,85544,{"$f":"SUM(C21:F21)","v":338011},{"$f":"IF(G21>0,G21/$G$18,\"-\")","v":1.0275447510815847}]
[null,null,null,null,null,null,null,null,null,"Password for protected cells\nA password has been set to prevent accidental  editing of cells with formulae. \nIf you still need to make an edit for some reason then the password = 1234"]
["Energy Usage / Export","Unit","Q1","Q2","Q3","Q4","Year Total","KWh/te"]
["Power Generated","MWh",56301,55196,51410,51243,{"$f":"SUM(C24:F24)","v":214150},{"$f":"IF(G24>0,G24*1000/$G$21,\"-\")","v":633.5592628642263}]
["Power Exported",null,50228,49045,45271,45079,{"$f":"SUM(C25:F25)","v":189623},{"$f":"IF(G25>0,G25*1000/$G$21,\"-\")","v":560.99653561570483}]
["Power Used on site",null,{"$f":"(C24-C25)+C27","v":6121},{"$f":"(D24-D25)+D27","v":6224},6210,6318,{"$f":"SUM(C26:F26)","v":24873},{"$f":"IF(G26>0,G26*1000/$G$21,\"-\")","v":73.586362573999068}]
["Power Imported",null,48,73,71,154,346,{"$f":"IF(G27>0,G27*1000/$G$21,\"-\")","v":1.0236353254775732}]
["Parasitic Load","%",{"$f":"IF(C24>0,1-C25/(C24+C27),\"-\")","v":0.10862659497062943},{"$f":"IF(D24>0,1-D25/(D24+D27),\"-\")","v":0.11261285711700952},{"$f":"IF(E24>0,1-E25/(E24+E27),\"-\")","v":0.12062702744701925},{"$f":"IF(F24>0,1-F25/(F24+F27),\"-\")","v":0.12292546257563675},{"$f":"IF(G24>0,1-G25/(G24+G27),\"-\")","v":0.11596020438609578}]
["Thermal Energy Produced ***","MWh",null,null,null,null,{"$f":"SUM(C29:F29)","v":0},{"$f":"IF(G29>0,G29*1000/$G$21,\"-\")","v":"-"}]
["Thermal Energy Exported ***",null,null,null,null,null,0,{"$f":"IF(G30>0,G30*1000/$G$21,\"-\")","v":"-"}]
["R1 value (if applicable)","R1",null,null,null,null,0.71]
[]
["Waste Disposal & Recovery","Unit","Q1","Q2","Q3","Q4","Year Total","% inputs"]
["APC Residues - produced","tonnes",1844,1938,1769,1951,{"$f":"SUM(C34:F34)","v":7502},{"$f":"IF(G34>0,G34/$G$21,\"-\")","v":2.2194543964545531E-2}]
["IBA - produced",null,15399,16913,16120,14576,63008,{"$f":"IF(G35>0,G35/$G$21,\"-\")","v":0.18640813464650557}]
["Metals recycling",null,1313,1072,1329,1466,{"$f":"SUM(C36:F36)","v":5180},1.5324945046167137E-2]
["Interceptor waste",null,61,0,0,78,{"$f":"SUM(C37:F37)","v":139},4.1122922035081701E-4]
["Other",null,0,0,0,0,0,"-"]
["Other",null,0,0,0,0,0,"-"]
[]
["Raw Material Usage","Unit","Q1","Q2","Q3","Q4","Year Total","kg or Ltr /te"]
["Mains Water","m3",9762,8211,9745,8339,{"$f":"SUM(C42:F42)","v":36057},{"$f":"IF(G42>0,G42/$G$21,\"-\")","v":0.10667404315244178}]
["Other Water","ltrs",null,null,null,null,0,{"$f":"IF(G43>0,G43/$G$21,\"-\")","v":"-"}]
["Ammonia","kgs",283000,312000,302000,285000,1182000,3.4969276147817676]
["Urea","kgs",null,null,null,null,{"$f":"SUM(C45:F45)","v":0},"-"]
["Activated Carbon","kgs",22300,17400,17200,21400,78300,0.23164926585229476]
["Lime / hydrated lime","kgs",903100,1072800,955500,894200,3825600,11.31797485880637]
["Fuel oil","ltrs",95965,81450,154495,185684,517594,1.5312933602752574]
["Gas","cuf",null,null,null,null,0]
["Other",null,null,null,null,null,0]
[]
["Summary ","Line/Unit","Q1","Q2","Q3","Q4","Year Total",null,"Hrs in year "]
["Availability of waste combustion by line, hrs ****",1,45688,2130,2016,1994,{"$f":"SUM(C53:F53)","v":51828},{"$f":"+G53/$I$53","v":5.9002732240437155},8784,"Change this figure to 8784 in a leap year"]
[null,2,2092,1947,1954,1997,7990,{"$f":"+G54/$I$53","v":0.90960837887067392}]
[null,3,null,null,null,null,0,0]
[null,4,null,null,null,null,0,0]
[null,5,null,null,null,null,{"$f":"SUM(C57:F57)","v":0},0]
["Overall Availability, mean avg. of all lines, hrs",null,{"$f":"AVERAGE(C53:C54)","v":23890},{"$f":"AVERAGE(D53:D54)","v":2038.5},1985,1995.5,{"$f":"AVERAGE(G53:G54)","v":29909},3.4049408014571947]
["Hours of turbine operations, hrs",1,2125,2126,2183,2106,8540,0.97222222222222221]
["Hours of turbine operations, hrs",2,null,null,null,null,0,0]
["Hours of heat / steam export",null,null,null,null,null,0,{"$f":"IF(B61>0,G60/I53,\"n/a\")","v":"n/a"}]
["Net Calorific Value of waste","MJ/kg"]
["Abnormal Events","qty.",null,null,null,null,0,{"$f":"IF(G63>0,\"yes\",\"no\")","v":"no"}]
["Abnormal operation","hours",null,null,null,null,0,{"$f":"+(G64)/I53","v":0}]
["Permit Breaches","qty.",null,null,null,null,0,{"$f":"IF(G65>0,\"yes\",\"no\")","v":"no"}]

{"sheet":"Operational Summary","index":4,"n_rows":75,"n_cols":11,"rows_kept":75,"cut":false,"hidden":false,"merged":[[71,1,71,8],[70,1,70,8],[72,1,72,8],[73,1,73,8],[74,1,74,8],[69,1,69,8],[54,10,64,13],[63,1,63,8],[59,1,59,8],[55,1,55,8],[56,1,56,8],[57,1,57,8],[58,1,58,8],[68,1,68,8],[64,1,64,8],[65,1,65,8],[66,1,66,8],[67,1,67,8],[60,1,60,8],[61,1,61,8],[62,1,62,8],[4,0,26,8],[30,0,51,8],[4,10,13,13],[30,10,39,13],[54,1,54,8],[53,1,53,8]]}
[{"$f":"+'Cover Page'!$B$29","v":"Annual Performance Report 2024"},null,null,null,{"$f":"+'Cover Page'!$B$33","v":"Staffordshire Energy Recovery Facility"}]
[]
["Summary of Plant Operations and Maintenance during the reporting year",null,null,null,null,null,null,null,null,null,"Notes:"]
[]
["The facility is in a two year outage strategy starting from year 2024 therefore there was no outage this year.\nHowever the following work has been carried out during breakdowns:\nShredder replacement\nCombustion optimisation\nUPS batteries replacement\nReagent lines new access platform\nReplacement of water treatment plant (ongoing)",null,null,null,null,null,null,null,null,null,"Include summary of key operational and/or maintenance activity undertaken in the year, such as any major component upgrades and/or replacements "]
[]
[]
[]
[]
[]
[]
[]
[]
[]
[]
[]
[]
[]
[]
[]
[]
[]
[]
[]
[]
[]
[]
[]
["Summary of Residue Handling for the reporting year"]
[]
["The plant has undergone rigorous testing to prove that the IBA is non-hazardous. The IBA is of a consistently high standard and there have been no failures in the last 24 samples. IBA is transported to Ling Hall in Rugby, where it is reprocessed into a number of different graded aggregates. Metals are further extracted from the process and recycled. \nIn addition to Dioxins/Furans and dioxin-like PCB's, Total Organic Carbon, POPs and metals tested in IBA are Antimony, Cadmium, Thallium, Mercury, Lead, Chromium, Copper, Manganese, Nickel, Arsenic, Cobalt, Vanadium, Zinc and their compounds.\nAPC residue is the fine particulate matter that is removed at the end of the gas cleansing process. It contains residues from the waste gas and the reactants used to treat the gas. APC is captured in the bag house filters in the plant before the gas is emitted and dispersed through the ERFs two 80m stacks. The APC from the Staffordshire ERF is sent to another Veolia facility for use in their treatment facility, Empire Works, or, for permanent storage at Minosus",null,null,null,null,null,null,null,null,null,"Include in here a summary of residue handling regimes and destinations "]
[]
[]
[]
[]
[]
[]
[]
[]
[]
[]
[]
[]
[]
[]
[]
[]
[]
[]
[]
[]
[]
[null,null,"2025-01-31"]
[{"$f":"+'Cover Page'!C39","v":2024},"Plant shut-downs"]
["Date","Reason for shut-down",null,null,null,null,null,null,null,null,"Provide a very brief reason for plant shut-down e.g. \"Shut-down prior to major outage\"; \"Emergency shut-down due to boiler tube leak\"\n\nThere is no need to include periods of hot-standby here (e.g. to clear feed chute hopper blockages).\n\nFor clinical waste incinerators which require regular shut-downs for boiler cleaning, there is no need to record these here. "]
["2024-02-06","A1 Shut down due to boiler tube leak"]
["2024-03-11","A2 Shut down due to furnace tube leak"]
["2024-03-23","A1 & A2 trip due to grid power outage"]
["2024-04-12","A1 & A2 trip due to grid power outage"]
["2024-04-29","A2 Shut down due to boiler tube leak"]
["2024-05-29","A2 Shut down due to boiler tube leak"]
["2024-06-10","A2 Shut down due to furnace tube leak"]
["2024-07-13","A1 Shut down due to fabric filter screw repairs"]
["2024-07-18","A1 Shut down due to boiler tube leak"]
["2024-08-05","A2 Shut down due to boiler tube leak"]
["2024-08-08","A1 Shut down due to AD blockage and feed chute water jacket leak"]
["2024-08-19","A2 Shut down due to furnace tube leak"]
["2024-08-25","A2 Shut down due to baghouse residue screw repairs"]
["2024-10-29","A1 Shut down due to air heater cleaning and overhaul of SH spray valves"]
["2024-11-04","A1 Shut down due to boiler water contamination"]
["2024-11-10","A1 Shut down due to lime injection fault"]
["2024-12-07","A1 & A2 Shut down due to site black out"]
["2024-12-10","A2 Shut down due to boiler gasket door failure"]
["2024-12-16","A2 Shut down due to screw residue no.1 repairs"]
["2024-12-23","A2 Shut down due to furnace tube leak"]

{"sheet":"Perf. Form 1","index":5,"n_rows":54,"n_cols":10,"rows_kept":54,"cut":false,"hidden":false,"merged":[[47,0,47,1],[49,0,49,9],[50,0,51,9],[38,0,38,9],[39,0,40,9],[43,0,43,1],[43,2,43,9],[45,0,45,1],[46,0,46,1],[36,0,36,3],[36,4,36,5],[36,7,36,8],[37,0,37,3],[37,4,37,5],[37,7,37,8],[34,0,34,3],[34,4,34,5],[34,7,34,8],[35,0,35,3],[35,4,35,5],[35,7,35,8],[31,0,31,3],[31,7,31,8],[32,0,32,3],[32,4,32,5],[32,7,32,8],[33,0,33,3],[33,4,33,5],[33,7,33,8],[23,0,23,3],[23,4,23,5],[23,6,23,7],[23,8,23,9],[25,0,25,9],[26,0,28,9],[21,0,21,1],[21,2,21,3],[21,4,21,5],[21,6,21,7],[21,8,21,9],[22,0,22,3],[22,4,22,5],[22,6,22,7],[22,8,22,9],[19,0,19,1],[19,2,19,3],[19,4,19,5],[19,6,19,7],[19,8,19,9],[20,0,20,1],[20,2,20,3],[20,4,20,5],[20,6,20,7],[20,8,20,9],[17,0,17,1],[17,2,17,3],[17,4,17,5],[17,6,17,7],[17,8,17,9],[18,0,18,1],[18,2,18,3],[18,4,18,5],[18,6,18,7],[18,8,18,9],[15,0,15,1],[15,2,15,3],[15,4,15,5],[15,6,15,7],[15,8,15,9],[16,0,16,9],[13,0,13,1],[13,2,13,3],[13,4,13,5],[13,6,13,7],[13,8,13,9],[14,0,14,3],[14,4,14,5],[14,6,14,7],[14,8,14,9],[11,0,11,1],[11,2,11,3],[11,4,11,5],[11,6,11,7],[11,8,11,9],[12,0,12,1],[12,2,12,3],[12,4,12,5],[12,6,12,7],[12,8,12,9],[9,0,9,9],[10,0,10,1],[10,2,10,3],[10,4,10,5],[10,6,10,7],[10,8,10,9],[2,0,2,4],[2,6,2,8],[3,1,3,4],[5,3,5,4],[5,6,5,7],[8,0,8,1],[8,2,8,3],[8,4,8,5],[8,6,8,7],[8,8,8,9]]}
[{"$f":"+'Cover Page'!C39","v":2024}," Annual Reporting Performance Form 1"]
[]
[{"$f":"+'Cover Page'!B31","v":"Permit EPR/HP3431HK"},null,null,null,null,"Operator: ",{"$f":"+'Cover Page'!B37","v":"Veolia ES Staffordshire Limited"}]
["Facility:",{"$f":"+'Cover Page'!B33:I33","v":"Staffordshire Energy Recovery Facility"},null,null,null,"Form:","Performance 1"]
[]
["Reporting  Period from: ",null,null,"2024-01-01",null,"to:","2024-12-31"]
[]
[{"$f":"+A1","v":2024},"Annual Reporting of Waste Disposal and Recovery"]
["Waste Description",null,"Disposal Route(s)",null,"Disposal Tonnes",null,"Recovery Tonnes",null,"% / tonne of waste incinerated"]
["1) Hazardous Wastes"]
["APC Residues",null,"D09/D12",null,{"$f":"'Operational Data'!G34","v":7502},null,null,null,{"$f":"IF((E11+G11)>0,(E11+G11)/'Operational Data'!$G$21, \"-\")","v":2.2194543964545531E-2}]
["IBA",null,null,null,null,null,null,null,{"$f":"IF((E12+G12)>0,(E12+G12)/'Operational Data'!$G$21, \"-\")","v":"-"}]
["Interceptor waste",null,"D09/D12",null,{"$f":"'Operational Data'!G37","v":139},null,null,null,{"$f":"IF((E13+G13)>0,(E13+G13)/'Operational Data'!$G$21, \"-\")","v":4.1122922035081701E-4}]
[null,null,null,null,null,null,null,null,{"$f":"IF((E14+G14)>0,(E14+G14)/'Operational Data'!$G$21, \"-\")","v":"-"}]
["Total Hazardous Waste",null,null,null,{"$f":"SUM(E11:F14)","v":7641},null,{"$f":"SUM(G11:H14)","v":0},null,{"$f":"IF((E15+G15)>0,(E15+G15)/'Operational Data'!$G$21, \"-\")","v":2.2605773184896351E-2}]
[]
["2) Non-Hazardous Wastes"]
["IBA",null,"R05",null,null,null,{"$f":"'Operational Data'!G35","v":63008},null,{"$f":"IF((E18+G18)>0,(E18+G18)/'Operational Data'!$G$21, \"-\")","v":0.18640813464650557}]
["Ferrous Metal",null,"R04",null,null,null,{"$f":"'Operational Data'!G36","v":5180},null,{"$f":"IF((E19+G19)>0,(E19+G19)/'Operational Data'!$G$21, \"-\")","v":1.5324945046167137E-2}]
["Process Water m3",null,null,null,6105,null,null,null,{"$f":"IF((E20+G20)>0,(E20+G20)/'Operational Data'!$G$21, \"-\")","v":1.8061542375839838E-2}]
[null,null,null,null,null,null,null,null,{"$f":"IF((E21+G21)>0,(E21+G21)/'Operational Data'!$G$21, \"-\")","v":"-"}]
[null,null,null,null,null,null,null,null,{"$f":"IF((E22+G22)>0,(E22+G22)/'Operational Data'!$G$21, \"-\")","v":"-"}]
["Total Non-Hazardous Waste",null,null,null,{"$f":"SUM(E18:F22)","v":6105},null,{"$f":"SUM(G18:H22)","v":68188},null,{"$f":"IF((E23+G23)>0,(E23+G23)/'Operational Data'!$G$21, \"-\")","v":0.21979462206851255}]
["TOTAL WASTE",null,null,null,{"$f":"+E23+E15","v":13746},null,{"$f":"+G23+G15","v":68188},null,{"$f":"IF((E24+G24)>0,(E24+G24)/'Operational Data'!$G$21, \"-\")","v":0.24240039525340892}]
[]
["Operator’s comments :"]
[]
[]
[]
[]
[{"$f":"+A1","v":2024},"Annual Reporting of Water and Other Raw Material Usage"]
["Raw Material",null,null,null,"Usage",null,"Unit","Specific Usage",null,"Unit"]
["Mains Water",null,null,null,{"$f":"+'Operational Data'!G42/1000","v":36.057000000000002},null,"m3",{"$f":"IF(E33>0,E33/'Operational Data'!$G$21,\"-\")","v":1.0667404315244179E-4},null,"m3/te"]
["Total Water",null,null,null,{"$f":"+'Operational Data'!G43+'Operational Data'!G42/1000","v":36.057000000000002},null,"m3",{"$f":"IF(E34>0,E34/'Operational Data'!$G$21,\"-\")","v":1.0667404315244179E-4},null,"m3/te"]
["Urea / Ammonia",null,null,null,{"$f":"+'Operational Data'!G44","v":1182000},null,"kg",{"$f":"IF(E35>0,E35/'Operational Data'!$G$21,\"-\")","v":3.4969276147817676},null,"kg/te"]
["Activated Carbon",null,null,null,{"$f":"+'Operational Data'!G46","v":78300},null,"kg",{"$f":"IF(E36>0,E36/'Operational Data'!$G$21,\"-\")","v":0.23164926585229476},null,"kg/te"]
["Lime / hydrated lime / Sodium Bicarb.",null,null,null,{"$f":"+'Operational Data'!G47","v":3825600},null,"kg",{"$f":"IF(E37>0,E37/'Operational Data'!$G$21,\"-\")","v":11.31797485880637},null,"kg/te"]
[]
["Operator’s comments :"]
[]
[]
[]
[{"$f":"+A31","v":2024},"Annual Reporting of other performance indicators "]
["Parameter",null,"Results by Line"]
[null,null,"A1","A2","A3","A4","A5",null,"Turbine 1","Turbine 2"]
["Operating hours for the year, hours",null,{"$f":"'Operational Data'!G53","v":51828},{"$f":"'Operational Data'!G54","v":7990},null,null,null,null,{"$f":"'Operational Data'!G59","v":8540}]
["Number of periods of abnormal operation, qty."]
["Cumulative hours of abnormal operation for this year, hours"]
[]
["Operator’s comments :"]
[]
[]
[null,null,"2025-01-31"]
["Signed: ","Matt Richardson",null,null,null,null,"Date:","2025-01-31"]

{"sheet":"Energy Form 1","index":6,"n_rows":53,"n_cols":8,"rows_kept":53,"cut":false,"hidden":false,"merged":[[15,0,15,2],[15,3,15,4],[15,6,15,8],[17,0,17,8],[18,0,24,8],[13,0,13,2],[13,3,13,4],[13,6,13,8],[14,0,14,2],[14,3,14,4],[14,6,14,8],[11,0,11,2],[11,3,11,4],[11,6,11,8],[12,0,12,2],[12,3,12,4],[12,6,12,8],[9,0,9,2],[9,3,9,4],[9,6,9,8],[10,0,10,2],[10,3,10,4],[10,6,10,8],[2,6,2,8],[4,1,4,4],[6,3,6,4],[6,6,6,7],[8,0,8,2],[8,3,8,4],[8,6,8,8]]}
[{"$f":"+'Cover Page'!C39","v":2024}," Annual Reporting of Energy Usage/Export"]
[]
[{"$f":"+'Cover Page'!B31","v":"Permit EPR/HP3431HK"},null,null,null,null,"Operator: ",{"$f":"+'Cover Page'!B37","v":"Veolia ES Staffordshire Limited"}]
[]
["Facility:",{"$f":"+'Cover Page'!B33:I33","v":"Staffordshire Energy Recovery Facility"},null,null,null,"Form:","Energy 1"]
[]
["Reporting  Period from: ",null,null,{"$f":"+'Perf. Form 1'!D6:E6","v":"2024-01-01"},null,"to:",{"$f":"+'Perf. Form 1'!G6:H6","v":"2024-12-31"}]
[]
["Energy Source",null,null,"Energy Usage",null,"Unit","Specific Usage (KWh/tonne incinerated"]
["Electricity Produced",null,null,{"$f":"+'Operational Data'!G24","v":214150},null,"MWh",{"$f":"+'Operational Data'!H24","v":633.5592628642263}]
["Electricity Imported   ",null,null,{"$f":"+'Operational Data'!G27","v":346},null,"MWh",{"$f":"+'Operational Data'!H27","v":1.0236353254775732}]
["Electricity Exported",null,null,{"$f":"+'Operational Data'!G25","v":189623},null,"MWh",{"$f":"+'Operational Data'!H25","v":560.99653561570483}]
["Gas Oil",null,null,{"$f":"'Operational Data'!G47","v":3825600},null,"tonnes",{"$f":"'Operational Data'!H48","v":1.5312933602752574}]
["Steam/hot water exported",null,null,{"$f":"+'Operational Data'!G30","v":0},null,"GWh",{"$f":"+'Operational Data'!H30","v":"-"}]
[]
[]
[]
["Operator’s comments :"]
[]
[]
[]
[]
[]
[]
[]
[]
[]
[]
["Signed: ","Matt Richardson",null,null,null,null,"Date:","2025-01-31"]
[]
[]
[]
[]
[]
[]
[]
[]
[]
[]
[]
[]
[]
[]
[]
[]
[]
[]
[]
[]
[]
[]
[]
[null,null,"2025-01-31"]

{"sheet":"Permit Compliance","index":7,"n_rows":53,"n_cols":12,"rows_kept":53,"cut":false,"hidden":false,"merged":[[24,1,24,2],[25,1,25,2],[26,0,26,8],[19,7,19,8],[19,1,19,2],[19,3,19,5],[21,3,21,5],[22,3,22,5],[23,3,23,5],[24,3,24,5],[25,3,25,5],[21,1,21,2],[8,11,20,11],[28,0,28,10],[18,0,18,10],[33,1,33,3],[33,4,33,6],[33,7,33,9],[29,1,29,3],[29,4,29,6],[29,7,29,9],[30,1,30,3],[30,4,30,6],[30,7,30,9],[22,1,22,2],[23,1,23,2],[14,0,14,1],[14,2,14,4],[34,1,34,3],[34,4,34,6],[34,7,34,9],[31,1,31,3],[31,4,31,6],[31,7,31,9],[32,1,32,3],[32,4,32,6],[32,7,32,9],[14,5,14,8],[15,0,15,1],[16,2,16,4],[16,5,16,8],[15,2,15,4],[15,5,15,8],[16,0,16,1],[7,0,7,1],[7,2,7,8],[8,0,8,1],[8,2,8,4],[8,5,8,8],[35,4,35,8],[9,0,9,1],[9,2,9,4],[9,5,9,8],[10,0,10,1],[10,2,10,4],[10,5,10,8],[11,0,11,1],[11,2,11,4],[11,5,11,8],[12,0,12,1],[12,2,12,4],[12,5,12,8],[13,0,13,1],[13,2,13,4],[13,5,13,8]]}
[{"$f":"+'Cover Page'!$B$29","v":"Annual Performance Report 2024"},null,null,null,{"$f":"+'Cover Page'!$B$33","v":"Staffordshire Energy Recovery Facility"}]
[]
["Summary of Permit Compliance"]
[]
["Compliance with permit limits for continuously monitored pollutants"]
[]
["The plant met its emission limits as shown in the table below:"]
["Substance",null,"Percentage time compliant during operationNote 1",null,null,null,null,null,null,null,null,"Notes:"]
[null,null,"Half-hourly limit",null,null,"Daily limit",null,null,null,null,null,"Note 1: Please report to 2 decimal places, i.e. xx.xx%\n\nNote 2: Please enter into this table any permit non-compliances that the EA has given a CCS score for. Please also enter any other non-compliances which you have notified to the EA (e.g. ELV exceedances) but which have not yet been assessed by the EA. There is no need to enter any notifications which were subsequently assessed by the EA not to be permit breaches.  \n\nNote 3: Please enter information here (rather than just referencing the notifications that were sent to the EA) including where relevant the incineration line reference, pollutant and value of the measured result for any ELV exceedances.   \n\n"]
["Particulates",null,1,null,null,1]
["Oxides of nitrogen",null,1,null,null,1]
["Sulphur dioxide",null,1,null,null,1]
["Carbon monoxide",null,"xx.xx % or \n100.00% 95% of 10-min averages",null,null,1]
["Total organic carbon",null,1,null,null,1]
["Hydrogen chloride",null,1,null,null,1]
["Ammonia",null,"xx.xx %",null,null,1]
[null,null,"xx.xx %",null,null,"xx.xx %"]
[]
["Summary of non-compliances under the permit Note 2"]
["Date","Summary of non-compliance Note 3",null,"Reason ",null,null,"Measures taken to prevent reoccurrence","CCS score if applicable*"]
[null,null,null,null,null,null,null,"Impact","Root cause"]
[]
[]
[]
[]
[]
["*If the Environment Agency (EA) has given a Compliance Classification Scheme (CCS) score due to a permit non-compliance it should be entered here (CCS4 = No impact; CCS3 = Minor impact; CCS2 = Significant impact; CCS1 = Major impact). If the EA has not yet assessed a non-compliance which you have notified to them, these columns should be left blank. Enter N/A if no score was given for the root cause.  "]
[]
["Summary of any complaints received and actions to taken to resolve them."]
["Date","Summary of complaint [including Line/Reference]",null,null,"Reason (including whether substantiated by the operator or the EA)",null,null,"Measures taken to prevent reoccurrence"]
[]
[]
[]
[]
[]
[]
[]
[]
[]
[]
[]
[]
[]
[]
[]
[]
[]
[]
[]
[]
[]
[]
[null,null,"2025-01-31"]

{"sheet":"Improvements","index":8,"n_rows":53,"n_cols":5,"rows_kept":53,"cut":false,"hidden":false,"merged":[[37,0,37,8],[38,0,47,8],[4,0,4,8],[5,0,13,8],[15,0,15,8],[16,0,24,8],[26,0,26,8],[27,0,35,8]]}
[{"$f":"+'Cover Page'!$B$29","v":"Annual Performance Report 2024"},null,null,null,{"$f":"+'Cover Page'!$B$33","v":"Staffordshire Energy Recovery Facility"}]
[]
["Summary of Plant Improvements"]
[]
["Summary of any efficiency improvements that have been completed within the year."]
["n/a"]
[]
[]
[]
[]
[]
[]
[]
[]
[]
["Summary of any permit improvement conditions that have been completed within the year and the resulting environmental benefits."]
["n/a"]
[]
[]
[]
[]
[]
[]
[]
[]
[]
["Summary of any changes to the plant or operating techniques which required a variation to the permit and a summary of the resulting environmental impact."]
["A permit variation has been submitted in order to increase the annual permitted waste tonnage throughput from 340000 per annum to 355000 per annum. \n"]
[]
[]
[]
[]
[]
[]
[]
[]
[]
["Summary of any other improvements made to the plant or planned to be made and a summary of the resulting environmental benefits."]
["n/a"]
[]
[]
[]
[]
[]
[]
[]
[]
[]
[]
[]
[]
[]
[null,null,"2025-01-31"]

{"sheet":"Public Liasion","index":9,"n_rows":53,"n_cols":5,"rows_kept":53,"cut":false,"hidden":false,"merged":[[23,0,24,1],[23,2,24,8],[25,0,26,1],[25,2,26,8],[28,0,28,8],[17,0,18,1],[17,2,18,8],[19,0,20,1],[19,2,20,8],[21,0,22,1],[21,2,22,8],[16,0,16,1],[16,2,16,8],[5,0,5,1],[5,2,5,8],[6,0,7,1],[6,2,7,8],[8,0,9,1],[8,2,9,8],[10,0,11,1],[10,2,11,8],[12,0,13,1],[12,2,13,8],[15,0,15,8]]}
[{"$f":"+'Cover Page'!$B$29","v":"Annual Performance Report 2024"},null,null,null,{"$f":"+'Cover Page'!$B$33","v":"Staffordshire Energy Recovery Facility"}]
[]
["Details of Public & Stakeholder Liaison"]
[]
["Summary of events held during the reporting year."]
["Date",null,"Description"]
["Monthly",null,"Contract meeting with Staffordshire W2R partnership"]
[]
["Quarterly",null,"W2R partners meetings"]
[]
[]
[]
[]
[]
[]
["List of events planned for next year"]
["Date",null,"Description"]
["Monthly",null,"Contract meeting with Staffordshire W2R partnership"]
[]
["Quarterly",null,"W2R partners meetings"]
[]
[]
[]
[]
[]
[]
[]
[]
["If you wish to be involved in the public liaison programme, please contact _0203 567 6300_"]
[]
[]
[]
[]
[]
[]
[]
[]
[]
[]
[]
[]
[]
[]
[]
[]
[]
[]
[]
[]
[]
[]
[]
[null,null,"2025-01-31"]

{"sheet":"CO2 N2O","index":10,"n_rows":53,"n_cols":6,"rows_kept":53,"cut":false,"hidden":false,"merged":[[22,2,22,3],[25,1,25,3],[16,2,16,3],[4,0,4,3],[9,0,9,3],[17,0,17,3],[13,0,13,3],[12,0,12,1],[8,2,8,3],[11,2,11,3],[19,2,19,3]]}
[{"$f":"+'Cover Page'!$B$29","v":"Annual Performance Report 2024"},null,{"$f":"+'Cover Page'!$B$33","v":"Staffordshire Energy Recovery Facility"}]
[]
["Carbon dioxide emissions and biogenic content of waste inputs",null,null,null,null,"Notes:"]
[]
["Carbon dioxide emissions (all types of plant)"]
[null,"Annual mass of carbon dioxide released","tonnes ",420262]
[null,"Annual mass of carbon dioxide released per tonne of waste burned","t CO2 / t waste ",{"$f":"D6/'Operational Data'!G21","v":1.2433382345544968}]
[null,"Annual mass of carbon dioxide released per MWh of energy exported","t CO2 / MWh export ",{"$f":"D6/'Operational Data'!G25","v":2.2163028746512818}]
[null,"Description of how annual carbon dioxide mass emission has been calculated. \nSee Note 1","CEM data",null,null,"Note 1: All permits require operators to continuously monitor CO2 to EN14181 and flow to BS EN 16911-2 (unless otherwise agreed in writing). Operators must therefore use the results from these instruments to calculate their annual CO2 emissions. Where an operator does not have a flow meter calibrated to BS EN 16911-2, the averaged flow measurement from that year's periodic monitoring can be used instead. If the plant does not have calibrated CO2 CEMS, a suitably justified emissions factor can be used."]
["Nitrous oxide emissions (only plants which use ammonia or urea to abate NOx emissions)"]
[null,"Annual mass emissions of nitrous oxide","tonnes N2O",0.94399999999999995]
[null,"Description of how annual nitrous oxide mass emission has been calculated\nSee Note 2","CEM data",null,null,"Note 2: All permits require operators to continuously monitor N2O to EN14181 and flow to BS EN 16911-2, unless otherwise agreed in writing. Operators must therefore use the results from these instruments to calculate their annual N2O emissions. Where an operator does not have a flow meter calibrated to BS EN 16911-2, the averaged flow measurement from periodic monitoring can be used instead. If the plant does not have calibrated N2O CEMS, data from periodic monitoring or a suitably justified emissions factor can be used instead."]
["Total annual carbon dioxide + nitrous oxide emissions. \nSee Note 3. ",null,"tonnes CO2e",{"$f":"(D11*265)+D6","v":420512.16},null,"Note 3: Total annual carbon dioxide and nitrous oxide emissions reported as carbon dioxide equivalent where 1 tonne nitrous oxide is equivalent to 265 tonnes carbon dioxide."]
["Biogenic CO2 emissions (See Note 4)",null,null,null,null,"Note 4: Only plants combusting residual municipal waste, refuse derived fuel or solid recovered fuel need complete this section. "]
[null,"Percentage of total carbon dioxide emissions arising from biogenic waste","%",0.54700000000000004]
[null,"No. of measurements undertaken","Number",1]
[null,"Description of how percentage biogenic carbon dioxide emissions have been measured or calculated.\nSee Note 5","C14 sampling",null,null,"Note 5: The results from C14 sampling should be used if this is carried out at the plant (either via an installed sampler or from spot samples).  \nOtherwise, as an approximation (and in lieu of any more accurate metrics which may be developed in future), the measured or estimated biogenic fraction by net calorific value (see Note 6) can be assumed to be the same as the biogenic CO2 fraction of the total CO2 emissions from the plant. "]
["Biogenic fraction of waste feedstock (See Note 4)"]
[null,"Yearly average biogenic percentage of the waste by net calorific value (NCV)","%"]
[null,"Description of how biogenic percentage (by NCV) has been calculated or estimated. \nSee Note 6",null,null,null,"Note 6: If C14 sampling is carried out at the plant, the methodology set out in the embedded document entitled \"Renewable Energy Association Energy Content of Fuels - Description of Method\" embedded below can be used to calculate the biogenic percentage by net calorific value. Otherwise, data from waste sampling or BIOMA software can be used; or if none of these are available, an estimated figure with justification or a figure assumed on the basis of up-to-date industry data can be used. "]
[null,"Yearly average biogenic percentage of the waste by mass","%"]
[null,"If waste sampling undertaken, no. of samples used to ascertain average biogenic percentages above","Number"]
[null,"Description of how biogenic percentage (by mass) has been calculated or estimated. \nSee Note 7",null,null,null,"Note 7: Where available, data from waste sampling should be used; otherwise, an estimated figure with justification can be used, or a figure assumed on the basis of up-to-date industry data. "]
[]
[null,"Comments:"]
[]
[]
[]
[]
[]
[]
[]
[]
[]
[]
[]
[]
[]
[]
[]
[]
[]
[]
[]
[]
[]
[]
[]
[]
[]
[]
[]
[null,null,"2025-01-31"]

{"sheet":"Residue Quality ","index":11,"n_rows":53,"n_cols":6,"rows_kept":53,"cut":false,"hidden":false,"merged":[[36,0,41,6],[32,3,32,4],[35,0,35,6],[27,0,28,1],[29,0,29,1],[30,0,30,1],[31,0,31,1],[32,0,32,1],[29,3,29,4],[30,3,30,4],[29,5,29,6],[30,5,30,6],[31,5,31,6],[32,5,32,6],[33,0,33,6],[20,0,21,1],[20,2,21,6],[22,0,23,1],[22,2,23,6],[31,3,31,4],[27,2,28,2],[28,3,28,4],[28,5,28,6],[27,3,27,6],[26,0,26,6],[5,0,6,6],[7,0,8,6],[9,0,10,6],[14,0,15,1],[14,2,15,6],[16,0,17,1],[16,2,17,6],[18,0,19,1],[18,2,19,6],[12,0,12,6],[13,0,13,1],[13,2,13,6]]}
[{"$f":"+'Cover Page'!$B$29","v":"Annual Performance Report 2024"},null,null,null,{"$f":"+'Cover Page'!$B$33","v":"Staffordshire Energy Recovery Facility"}]
[]
["Residue Quality Monitoring Requirements"]
[]
["Summary of monitoring undertaken and compliance"]
["As per permit requirements"]
[]
[]
[]
[]
[]
[]
["Commentary on any specific events"]
["Date & Event",null,"Description"]
[]
[]
[]
[]
[]
[]
[]
[]
[]
[]
[]
[]
["Residue Quality Monitoring Results"]
["Parameter (unit) ",null,"Limit*","Normal Operation "]
[null,null,null,"Bottom ash  ",null,"APC Residues"]
["Loss on Ignition (average %)",null,"<5%"]
["Total Organic Carbon (average %)",null,"<3%",1.05]
["No. of Assessments Undertaken",null,"---"]
["No. of Hazardous Results",null,"---"]
["* The permit will specify a limit of either 5% loss on ignition or 3% total organic carbon. If both are measured anyway, please enter the results here, even where the limit does not apply. "]
[]
["Comments :"]
[]
[]
[]
[]
[]
[]
[]
[]
[]
[]
[]
[]
[]
[]
[]
[]
[null,null,"2025-01-31"]

{"sheet":"Water","index":12,"n_rows":53,"n_cols":9,"rows_kept":53,"cut":false,"hidden":false,"merged":[[29,0,29,2],[29,3,29,4],[26,0,26,2],[26,3,26,4],[27,0,27,2],[27,3,27,4],[28,0,28,2],[28,3,28,4],[23,0,23,2],[23,3,23,4],[24,0,24,2],[24,3,24,4],[25,0,25,2],[25,3,25,4],[21,0,21,8],[22,0,22,2],[22,3,22,4],[14,0,15,1],[14,2,15,8],[16,0,17,1],[16,2,17,8],[18,0,19,1],[18,2,19,8],[5,0,6,8],[7,0,8,8],[9,0,10,8],[12,0,12,8],[13,0,13,1],[13,2,13,8]]}
[{"$f":"+'Cover Page'!$B$29","v":"Annual Performance Report 2024"},null,null,null,{"$f":"+'Cover Page'!$B$33","v":"Staffordshire Energy Recovery Facility"}]
[]
["Emissions to Water"]
[]
["Summary of monitoring undertaken and compliance"]
["As per Severn Trent discharge consent of trade effluent to public foul sewer"]
[]
["No samples taken from Severn Trent within year 2024"]
[]
[]
[]
[]
["Commentary on any specific events"]
["Date & Event",null,"Description"]
[]
[]
[]
[]
[]
[]
[]
["Emissions to Water / Sewer"]
["Parameter",null,null,"Monitoring Frequency",null,"Limit","Target","Max.","Average"]
["pH",null,null,"Periodic",null,"6 to 10"]
["COD",null,null,"Periodic",null,800]
["Suspended solids",null,null,"Periodic",null,400]
[]
[]
[]
[]
[]
[]
[]
[]
[]
[]
[]
[]
[]
[]
[]
[]
[]
[]
[]
[]
[]
[]
[]
[]
[]
[]
[null,null,"2025-01-31"]

{"sheet":"Air (periodic)","index":13,"n_rows":53,"n_cols":12,"rows_kept":53,"cut":false,"hidden":false,"merged":[[22,0,22,1],[22,3,22,4],[23,0,23,1],[23,3,23,4],[9,9,9,10],[21,3,21,4],[16,0,16,1],[17,0,17,1],[18,0,18,1],[13,0,13,1],[14,0,14,1],[15,0,15,1],[12,0,12,1],[11,3,11,4],[12,3,12,4],[9,0,10,1],[13,11,14,13],[15,11,16,11],[15,12,16,12],[15,13,16,13],[18,3,18,4],[13,3,13,4],[14,3,14,4],[15,3,15,4],[16,3,16,4],[17,3,17,4],[24,3,24,4],[25,3,25,4],[26,3,26,4],[33,3,33,4],[27,3,27,4],[28,3,28,4],[30,3,30,4],[40,0,40,10],[19,0,19,1],[20,0,20,1],[21,0,21,1],[36,3,36,4],[37,3,37,4],[35,0,35,1],[36,0,36,1],[37,0,37,1],[38,0,38,1],[26,0,26,1],[34,3,34,4],[29,3,29,4],[35,3,35,4],[19,3,19,4],[20,3,20,4],[41,0,42,10],[27,0,27,1],[28,0,28,1],[24,0,24,1],[25,0,25,1],[39,0,39,1],[29,0,29,1],[30,0,30,1],[31,0,31,1],[32,0,32,1],[33,0,33,1],[34,0,34,1],[39,3,39,4],[31,3,31,4],[32,3,32,4],[38,3,38,4],[9,3,10,4],[9,2,10,2],[5,11,8,14],[9,11,11,14],[8,0,8,10],[5,0,6,10],[11,0,11,1]]}
[{"$f":"+'Cover Page'!$B$29","v":"Annual Performance Report 2024"},null,null,null,{"$f":"+'Cover Page'!$B$33","v":"Staffordshire Energy Recovery Facility"}]
[]
["Emissions to Air (periodically monitored)"]
[]
["Summary of monitoring undertaken, standards used and compliance",null,null,null,null,null,null,null,null,null,null,"Notes:"]
["As per permit requirements",null,null,null,null,null,null,null,null,null,null,"Template may require adjustment for any bespoke monitoring requirements of permit - please also check that all default ELV values, reference periods and the stated oxygen reference value match those for your plant, and edit if necessary!"]
[]
[]
["Results of emissions to air that are periodically monitored - oxygen reference 11% "]
["Substance",null,"Ref. Period","Emission Limit Value",null,null,null,null,null,"Average",null,"User to add additional tables as necessary, depending on whether quarterly or bi-annual reporting is required for the compliance year"]
[null,null,null,null,null,"A1(Q1&Q2)","A2(Q1&Q2)","A1(Q3&Q4)","A2(Q3&Q4)","A1","A2"]
["Hydrogen fluoride",null,"30min x 3","1 mg/m3",null,8.6999999999999994E-2,4.7E-2,2.3E-2,2.7E-2,{"$f":"AVERAGE(F12,H12)","v":5.4999999999999993E-2},{"$f":"AVERAGE(G12,I12)","v":3.6999999999999998E-2}]
["Cd and Tl and their compounds",null,"30min x 3","0.02 mg/m3",null,1.1000000000000001E-3,1.1299999999999999E-3,1.07E-3,1.07E-3,{"$f":"AVERAGE(F13,H13)","v":1.085E-3},{"$f":"AVERAGE(G13,I13)","v":1.0999999999999998E-3}]
["Hg and its compounds",null,"30min x 3","0.02 mg/m3",null,3.8999999999999999E-4,3.2000000000000003E-4,5.1999999999999995E-4,3.2000000000000003E-4,4.55E-4,3.2000000000000003E-4]
["Sb, As, Pb, Cr, Co, Cu, Mn, Ni, V and their compounds",null,"30min x 3","0.3 mg/m3",null,4.9700000000000001E-2,3.2000000000000001E-2,3.1E-2,3.6299999999999999E-2,4.0349999999999997E-2,3.415E-2]
["Dioxins & Furans (I-TEQ)",null,"6-8hrs","0.06 ng/m3",null,1.4E-3,1.9E-3,3.0000000000000001E-3,1.4E-3,2.2000000000000001E-3,1.65E-3]
["PCBs (WHO-TEQ Humans / Mammals)",null,"6-8hrs","None set ng/m3",null,3.3E-4,4.0999999999999999E-4,4.0999999999999999E-4,2.5999999999999998E-4,3.6999999999999999E-4,3.3500000000000001E-4]
["PCBs (WHO-TEQ Fish)",null,"6-8hrs","None set ng/m3",null,8.7000000000000001E-5,9.7E-5,2.4000000000000001E-5,1.7E-5,5.5500000000000001E-5,5.7000000000000003E-5]
["PCBs (WHO-TEQ Birds)",null,"6-8hrs","None set ng/m3",null,3.2000000000000001E-2,3.5000000000000003E-2,1.6000000000000001E-3,2.3999999999999998E-3,1.6799999999999999E-2,1.8700000000000001E-2]
["Dioxins & Furans (WHO-TEQ Humans / Mammals)",null,"6-8hrs","None set ng/m3",null,1.6000000000000001E-3,2.2000000000000001E-3,3.3E-3,1.6000000000000001E-3,2.4499999999999999E-3,1.9000000000000002E-3]
["Dioxins & Furans (WHO-TEQ Fish)",null,"6-8hrs","None set ng/m3",null,1.4E-3,2.0999999999999999E-3,3.2000000000000002E-3,1.5E-3,2.3E-3,1.8E-3]
["Dioxins & Furans (WHO-TEQ Birds)",null,"6-8hrs","None set ng/m3",null,3.0000000000000001E-3,4.3E-3,6.7999999999999996E-3,2.0999999999999999E-3,4.8999999999999998E-3,3.1999999999999997E-3]
["Polybrominated dibenzo-Dioxins & Furans",null,"6-8hrs","None set ng/m3",null,1.064E-2,1.405E-2,1.17E-3,1.2999999999999999E-3,5.9050000000000005E-3,7.6749999999999995E-3]
["Total PAH",null,"6-8hrs","None set µg/m3",null,null,null,0.24,0.16,0.24,0.16]
["Anthanthrene",null,"6-8hrs","None set µg/m3",null,null,null,1.1000000000000001E-3,1.1999999999999999E-3,1.1000000000000001E-3,1.1999999999999999E-3]
["Benzo(a)anthracene",null,"6-8hrs","None set µg/m3",null,null,null,1.1999999999999999E-3,2E-3,1.1999999999999999E-3,2E-3]
["Benzo(a)pyrene",null,"6-8hrs","None set µg/m3",null,null,null,1.1000000000000001E-3,2.2000000000000001E-3,1.1000000000000001E-3,2.2000000000000001E-3]
["Benzo(b)fluoranthene",null,"6-8hrs","None set µg/m3",null,null,null,1.1000000000000001E-3,2.8E-3,1.1000000000000001E-3,2.8E-3]
["Benzo(b)naptho(2,1-d) thiophene",null,"6-8hrs","None set µg/m3",null,null,null,1.1000000000000001E-3,1.1999999999999999E-3,1.1000000000000001E-3,1.1999999999999999E-3]
["Benzo(c)phenanthrene",null,"6-8hrs","None set µg/m3",null,null,null,1.1000000000000001E-3,1.1999999999999999E-3,1.1000000000000001E-3,1.1999999999999999E-3]
["Benzo(ghi)perylene",null,"6-8hrs","None set µg/m3",null,null,null,1.1000000000000001E-3,3.7999999999999999E-2,1.1000000000000001E-3,3.7999999999999999E-2]
["Benzo(k)fluoranthene",null,"6-8hrs","None set µg/m3",null,null,null,1.1000000000000001E-3,1.1999999999999999E-3,1.1000000000000001E-3,1.1999999999999999E-3]
["Cholanthrene",null,"6-8hrs","None set µg/m3",null,null,null,1.1000000000000001E-3,1.1999999999999999E-3,1.1000000000000001E-3,1.1999999999999999E-3]
["Chrysene",null,"6-8hrs","None set µg/m3",null,null,null,2E-3,2.8E-3,2E-3,2.8E-3]
["Cyclopenta(cd)pyrene",null,"6-8hrs","None set µg/m3",null,null,null,1.1000000000000001E-3,1.1999999999999999E-3,1.1000000000000001E-3,1.1999999999999999E-3]
["Dibenzo(ai)pyrene",null,"6-8hrs","None set µg/m3",null,null,null,1.1000000000000001E-3,1.1999999999999999E-3,1.1000000000000001E-3,1.1999999999999999E-3]
["Dibenzo(ah)anthracene",null,"6-8hrs","None set µg/m3",null,null,null,1.1000000000000001E-3,1.1999999999999999E-3,1.1000000000000001E-3,1.1999999999999999E-3]
["Fluoranthene",null,"6-8hrs","None set µg/m3",null,null,null,2.7E-2,0.03,2.7E-2,0.03]
["Indeno(123-cd) pyrene",null,"6-8hrs","None set µg/m3",null,null,null,1.1000000000000001E-3,7.7000000000000002E-3,1.1000000000000001E-3,7.7000000000000002E-3]
["Naphthalene",null,"6-8hrs","None set µg/m3",null,null,null,0.19,6.8000000000000005E-2,0.19,6.8000000000000005E-2]
["Comments :"]
["PAH periodic emissions monitoring annual requirement, conducted in Q3/Q4"]
[]
[]
[]
[]
[]
[]
[]
[]
[]
[]
[null,null,"2025-01-31"]

{"sheet":"Air (CEMS)","index":14,"n_rows":53,"n_cols":14,"rows_kept":53,"cut":false,"hidden":false,"merged":[[29,0,30,12],[13,0,14,0],[5,0,6,12],[7,0,8,12],[10,0,10,12],[11,0,12,0],[11,2,12,2],[11,1,12,1],[11,3,11,4],[11,5,11,6],[11,7,11,8],[11,9,11,10],[11,11,11,12],[15,0,16,0],[17,0,18,0],[19,0,20,0],[14,13,15,13],[14,14,15,14],[14,15,15,15],[12,13,13,15],[27,0,27,12],[21,0,22,0],[23,0,25,0]]}
[{"$f":"+'Cover Page'!$B$29","v":"Annual Performance Report 2024"},null,null,null,null,null,null,null,{"$f":"+'Cover Page'!$B$33","v":"Staffordshire Energy Recovery Facility"}]
[]
["Emissions to Air (continuously monitored)"]
[null,null,null,null,null,null,null,null,null,null,null,null,null,"Notes:"]
["Summary of monitoring undertaken, standards used and compliance",null,null,null,null,null,null,null,null,null,null,null,null,"Template may require adjustment for any bespoke monitoring requirements of permit"]
[null,null,null,null,null,null,null,null,null,null,null,null,null,"Please check that all default ELV values match those for your plant and edit if necessary!"]
[null,null,null,null,null,null,null,null,null,null,null,null,null,"Report to 1 decimal place"]
[]
[]
[]
["Results of emissions to air that are continuously monitored (maximum and average values for each line) - oxygen reference 11%"]
["Substance","Reference Period","Emission Limit Value","A1",null,"A2",null,"A3",null,"A4",null,"A5"]
[null,null,null,"Max.","Avg.","Max.","Avg.","Max.","Avg.","Max.","Avg.","Max.","Avg."]
["Oxides of nitrogen","Daily mean","180 mg/m3 ",{"$f":"NOx!O19","v":169.2},{"$f":"NOx!N19","v":146.77500000000001},{"$f":"NOx!O34","v":171.3},{"$f":"NOx!N34","v":152.00833333333335}]
[null,"½ hourly mean","400 mg/m3 ",{"$f":"NOx!M19","v":327.3},{"$f":"NOx!L19","v":146.94166666666663},{"$f":"NOx!M34","v":315.8},{"$f":"NOx!L34","v":152.14999999999998}]
["Particulates","Daily mean","5 mg/m3",{"$f":"Particulates!O19","v":0.8},{"$f":"Particulates!N19","v":0.37500000000000006},{"$f":"Particulates!O34","v":0.5},{"$f":"Particulates!N34","v":0.39999999999999997}]
[null,"½ hourly mean","30 mg/m3 ",{"$f":"Particulates!M19","v":3.4},{"$f":"Particulates!L19","v":0.43333333333333329},{"$f":"Particulates!M34","v":4.5},{"$f":"Particulates!L34","v":0.43333333333333329}]
["Total Organic Carbon ","Daily mean","10 mg/m3 ",{"$f":"TOC!O19","v":0.9},{"$f":"TOC!N19","v":0.34166666666666662},{"$f":"TOC!O34","v":1.1000000000000001},{"$f":"TOC!N34","v":0.19166666666666665}]
[null,"½ hourly mean","20 mg/m3 ",{"$f":"TOC!M19","v":11.4},{"$f":"TOC!L19","v":0.40833333333333338},{"$f":"TOC!M34","v":18.2},{"$f":"TOC!L34","v":0.23333333333333336}]
["Hydrogen chloride ","Daily mean","8 mg/m3 ",{"$f":"HCl!O19","v":6},{"$f":"HCl!N19","v":4.3},{"$f":"HCl!O34","v":7.5},{"$f":"HCl!N34","v":4.7833333333333323}]
[null,"½ hourly mean","60 mg/m3 ",{"$f":"HCl!M19","v":38.9},{"$f":"HCl!L19","v":4.333333333333333},{"$f":"HCl!M34","v":54.7},{"$f":"HCl!L34","v":4.8250000000000002}]
["Sulphur dioxide","Daily mean","40 mg/m3 ",{"$f":"'SO2'!O19","v":29},{"$f":"'SO2'!N19","v":16.600000000000001},{"$f":"'SO2'!O34","v":33.9},{"$f":"'SO2'!N34","v":18.116666666666667}]
[null,"½ hourly mean","200 mg/m3 ",{"$f":"'SO2'!M19","v":78.400000000000006},{"$f":"'SO2'!L19","v":16.633333333333333},{"$f":"'SO2'!M34","v":91.9},{"$f":"'SO2'!L34","v":18.183333333333334}]
["Carbon monoxide ","Daily mean","50 mg/m3 ",{"$f":"'CO 95% 10 min'!Q22","v":9.1},{"$f":"'CO 95% 10 min'!P22","v":2.5166666666666671},{"$f":"'CO 95% 10 min'!Q37","v":10.1},{"$f":"'CO 95% 10 min'!P37","v":3.1416666666666671}]
[null,"½ hourly mean *","100 mg/m3 *"]
[null,"95%ile 10-min avg *","150 mg/m3 *",{"$f":"'CO 95% 10 min'!M22","v":7.0083333333333329},{"$f":"'CO 95% 10 min'!N22","v":2.5833333333333335},{"$f":"'CO 95% 10 min'!M37","v":7.4916666666666671},{"$f":"'CO 95% 10 min'!N37","v":3.2083333333333335}]
[" Ammonia","Daily mean","15 mg/m3 ",{"$f":"'NH3'!O19","v":8.1},{"$f":"'NH3'!N19","v":3.8333333333333335},{"$f":"'NH3'!O34","v":8.1999999999999993},{"$f":"'NH3'!N34","v":3.625}]
["* = delete as appropriate, depending on whether your plant has half-hourly or 10-min CO ELVs\n"]
["Comments :"]
[]
[]
[]
[]
[]
[]
[]
[]
[]
[]
[]
[]
[]
[]
[]
[]
[]
[]
[]
[]
[]
[]
[]
[null,null,"2025-01-31"]

{"sheet":"HCl","index":15,"n_rows":79,"n_cols":17,"rows_kept":79,"cut":false,"hidden":false,"merged":[[12,16,15,18],[51,9,63,9],[66,9,78,9],[4,9,4,14],[4,1,4,3],[4,4,4,6],[48,0,51,6],[47,0,47,6],[6,9,18,9],[21,9,33,9],[36,9,48,9],[3,16,7,18],[9,16,11,18],[18,4,18,6]]}
[{"$f":"+'Cover Page'!$B$29","v":"Annual Performance Report 2024"},null,null,null,{"$f":"+'Cover Page'!$B$33","v":"Staffordshire Energy Recovery Facility"}]
[]
["Monitoring of Hydrogen Chloride emissions",null,null,"Whole Installation",null,null,"See  Notes in Cell Q3",null,null,{"$f":"+A3","v":"Monitoring of Hydrogen Chloride emissions"},null,null,null,"Per Combustion Line",null,null,"Notes:"]
[null,null,null,null,null,null,null,null,null,null,null,null,null,null,null,null,"User to add logic to complete Whole installation, Table A5:G18. From the data in Per Combustion Line, Table J6:O79, subject to No. of lines installed"]
[{"$f":"+'Cover Page'!C39","v":2024},"1/2 Hourly Reference Periods",null,null,"Daily Reference Periods"]
["mg/Nm3","1/2 hourly HCl ELV","Monthly mean of half-hourly averages","Highest half- hourly average","Daily HCl ELV","Monthly mean of  daily averages","Highest daily average",null,null,{"$f":"+A5","v":2024},"mg/Nm3","Monthly mean of half-hourly averages","Highest half- hourly average","Monthly mean of  daily averages","Highest daily average"]
["Jan",60,{"$f":"AVERAGE(L7,L22)","v":4.5500000000000007},{"$f":"MAX(M7,M22)","v":10.9},8,{"$f":"AVERAGE(N7,N22)","v":4.45},{"$f":"MAX(O7,O22)","v":6.7},null,null,"A1","Jan",3.7,7.8,3.6,4.8]
["Feb",60,{"$f":"AVERAGE(L8,L23)","v":3.7},{"$f":"MAX(M8,M23)","v":8.8000000000000007},8,{"$f":"AVERAGE(N8,N23)","v":3.65},{"$f":"MAX(O8,O23)","v":4.8},null,null,null,"Feb",3.5,8.8000000000000007,3.5,4.2]
["Mar",60,3.35,9.8000000000000007,8,3.25,4.5,null,null,null,"Mar",3,8.4,2.9,4,null,"Whole Installation table A5:G18:"]
["Apr",60,3.8000000000000003,10,8,3.75,5.0999999999999996,null,null,null,"Apr",4.4000000000000004,10,4.3,5.0999999999999996,null,"Mean: for 1/2 hourly and daily periods calculate mean of values across all operational combustion lines for the month"]
["May",60,3.95,23.3,8,3.95,6.1,null,null,null,"May",4,16.7,4,5.2]
["Jun",60,4.8499999999999996,18.399999999999999,8,4.8,5.3,null,null,null,"Jun",4.8,18.399999999999999,4.8,5.3]
["Jul",60,5.25,12.7,8,5.1999999999999993,6.4,null,null,null,"Jul",4.8,10.7,4.8,5.6,null,"Maximum: for 1/2 hourly and daily periods use the highest value across all operational combustion lines for the month"]
["Aug",60,5.2,17.3,8,5.2,6.4,null,null,null,"Aug",5,17.3,5,6]
["Sep",60,5.05,25.9,8,5.05,6.3,null,null,null,"Sep",4.8,7.7,4.8,5.4]
["Oct",60,5.45,16.2,8,5.45,7.5,null,null,null,"Oct",4.9000000000000004,9.5,4.9000000000000004,5.7]
["Nov",60,4.9000000000000004,38.9,8,4.8499999999999996,5.9,null,null,null,"Nov",4.5999999999999996,38.9,4.5,5.3]
["Dec",60,4.9000000000000004,54.7,8,4.9000000000000004,6.4,null,null,null,"Dec",4.5,9.4,4.5,5.2]
[null,null,null,null,null,null,null,null,null,null,"Annual",{"$f":"AVERAGE(L7:L18)","v":4.333333333333333},{"$f":"MAX(M7:M18)","v":38.9},{"$f":"AVERAGE(N7:N18)","v":4.3},{"$f":"MAX(O7:O18)","v":6}]
[]
[null,null,null,null,null,null,null,null,null,{"$f":"+A5","v":2024},"mg/Nm3","Monthly mean of half-hourly averages","Highest half- hourly average","Monthly mean of  daily averages","Highest daily average"]
[null,null,null,null,null,null,null,null,null,"A2","Jan",5.4,10.9,5.3,6.7]
[null,null,null,null,null,null,null,null,null,null,"Feb",3.9,8.3000000000000007,3.8,4.8]
[null,null,null,null,null,null,null,null,null,null,"Mar",3.7,9.8000000000000007,3.6,4.5]
[null,null,null,null,null,null,null,null,null,null,"Apr",3.2,8,3.2,3.6]
[null,null,null,null,null,null,null,null,null,null,"May",3.9,23.3,3.9,6.1]
[null,null,null,null,null,null,null,null,null,null,"Jun",4.9000000000000004,11.9,4.8,5.3]
[null,null,null,null,null,null,null,null,null,null,"Jul",5.7,12.7,5.6,6.4]
[null,null,null,null,null,null,null,null,null,null,"Aug",5.4,14.1,5.4,6.4]
[null,null,null,null,null,null,null,null,null,null,"Sep",5.3,25.9,5.3,6.3]
[null,null,null,null,null,null,null,null,null,null,"Oct",6,16.2,6,7.5]
[null,null,null,null,null,null,null,null,null,null,"Nov",5.2,24.3,5.2,5.9]
[null,null,null,null,null,null,null,null,null,null,"Dec",5.3,54.7,5.3,6.4]
[null,null,null,null,null,null,null,null,null,null,"Annual",{"$f":"AVERAGE(L22:L33)","v":4.8250000000000002},{"$f":"MAX(M22:M33)","v":54.7},{"$f":"AVERAGE(N22:N33)","v":4.7833333333333323},{"$f":"MAX(O22:O33)","v":7.5}]
[]
[null,null,null,null,null,null,null,null,null,{"$f":"+A5","v":2024},"mg/Nm3","Monthly mean of half-hourly averages","Highest half- hourly average","Monthly mean of  daily averages","Highest daily average"]
[null,null,null,null,null,null,null,null,null,"A3","Jan"]
[null,null,null,null,null,null,null,null,null,null,"Feb"]
[null,null,null,null,null,null,null,null,null,null,"Mar"]
[null,null,null,null,null,null,null,null,null,null,"Apr"]
[null,null,null,null,null,null,null,null,null,null,"May"]
[null,null,null,null,null,null,null,null,null,null,"Jun"]
[null,null,null,null,null,null,null,null,null,null,"Jul"]
[null,null,null,null,null,null,null,null,null,null,"Aug"]
[null,null,null,null,null,null,null,null,null,null,"Sep"]
[null,null,null,null,null,null,null,null,null,null,"Oct"]
[null,null,null,null,null,null,null,null,null,null,"Nov"]
["Comments :",null,null,null,null,null,null,null,null,null,"Dec"]
[null,null,null,null,null,null,null,null,null,null,"Annual",{"$f":"AVERAGE(L37:L48)","v":{"$error":"#DIV/0!"}},{"$f":"MAX(M37:M48)","v":0},{"$f":"AVERAGE(N37:N48)","v":{"$error":"#DIV/0!"}},{"$f":"MAX(O37:O48)","v":0}]
[]
[null,null,null,null,null,null,null,null,null,{"$f":"+A5","v":2024},"mg/Nm3","Monthly mean of half-hourly averages","Highest half- hourly average","Monthly mean of  daily averages","Highest daily average"]
[null,null,null,null,null,null,null,null,null,"A4","Jan"]
[null,null,"2025-01-31",null,null,null,null,null,null,null,"Feb"]
[null,null,null,null,null,null,null,null,null,null,"Mar"]
[null,null,null,null,null,null,null,null,null,null,"Apr"]
[null,null,null,null,null,null,null,null,null,null,"May"]
[null,null,null,null,null,null,null,null,null,null,"Jun"]
[null,null,null,null,null,null,null,null,null,null,"Jul"]
[null,null,null,null,null,null,null,null,null,null,"Aug"]
[null,null,null,null,null,null,null,null,null,null,"Sep"]
[null,null,null,null,null,null,null,null,null,null,"Oct"]
[null,null,null,null,null,null,null,null,null,null,"Nov"]
[null,null,null,null,null,null,null,null,null,null,"Dec"]
[null,null,null,null,null,null,null,null,null,null,"Annual",{"$f":"AVERAGE(L52:L63)","v":{"$error":"#DIV/0!"}},{"$f":"MAX(M52:M63)","v":0},{"$f":"AVERAGE(N52:N63)","v":{"$error":"#DIV/0!"}},{"$f":"MAX(O52:O63)","v":0}]
[]
[null,null,null,null,null,null,null,null,null,{"$f":"+A5","v":2024},"mg/Nm3","Monthly mean of half-hourly averages","Highest half- hourly average","Monthly mean of  daily averages","Highest daily average"]
[null,null,null,null,null,null,null,null,null,"A5","Jan"]
[null,null,null,null,null,null,null,null,null,null,"Feb"]
[null,null,null,null,null,null,null,null,null,null,"Mar"]
[null,null,null,null,null,null,null,null,null,null,"Apr"]
[null,null,null,null,null,null,null,null,null,null,"May"]
[null,null,null,null,null,null,null,null,null,null,"Jun"]
[null,null,null,null,null,null,null,null,null,null,"Jul"]
[null,null,null,null,null,null,null,null,null,null,"Aug"]
[null,null,null,null,null,null,null,null,null,null,"Sep"]
[null,null,null,null,null,null,null,null,null,null,"Oct"]
[null,null,null,null,null,null,null,null,null,null,"Nov"]
[null,null,null,null,null,null,null,null,null,null,"Dec"]
[null,null,null,null,null,null,null,null,null,null,"Annual",{"$f":"AVERAGE(L67:L78)","v":{"$error":"#DIV/0!"}},{"$f":"MAX(M67:M78)","v":0},{"$f":"AVERAGE(N67:N78)","v":{"$error":"#DIV/0!"}},{"$f":"MAX(O67:O78)","v":0}]

{"sheet":"SO2","index":16,"n_rows":79,"n_cols":17,"rows_kept":79,"cut":false,"hidden":false,"merged":[[3,16,7,18],[9,16,11,18],[12,16,15,18],[66,9,78,9],[4,1,4,3],[4,4,4,6],[4,9,4,14],[6,9,18,9],[21,9,33,9],[36,9,48,9],[47,0,47,6],[48,0,51,6],[51,9,63,9],[18,4,18,6]]}
[{"$f":"+'Cover Page'!$B$29","v":"Annual Performance Report 2024"},null,null,null,{"$f":"+'Cover Page'!$B$33","v":"Staffordshire Energy Recovery Facility"}]
[]
["Monitoring of Sulphur dioxide emissions",null,null,"Whole Installation",null,null,"See  Notes in Cell Q3",null,null,{"$f":"+A3","v":"Monitoring of Sulphur dioxide emissions"},null,null,null,"Per Combustion Line",null,null,"Notes:"]
[null,null,null,null,null,null,null,null,null,null,null,null,null,null,null,null,"User to add logic to complete Whole installation, Table A5:G18. From the data in Per Combustion Line, Table J6:O79, subject to No. of lines installed"]
[{"$f":"+'Cover Page'!C39","v":2024},"1/2 Hourly Reference Periods",null,null,"Daily Reference Periods"]
["mg/Nm3","1/2 hourly SO2 ELV","Monthly mean of half-hourly averages","Highest half- hourly average","Daily SO2 ELV","Monthly mean of  daily averages","Highest daily average",null,null,{"$f":"+A5","v":2024},"mg/Nm3","Monthly mean of half-hourly averages","Highest half- hourly average","Monthly mean of  daily averages","Highest daily average"]
["Jan",200,{"$f":"AVERAGE(L7,L22)","v":14.7},{"$f":"MAX(M7,M22)","v":91.9},40,{"$f":"AVERAGE(N7,N22)","v":14.649999999999999},{"$f":"MAX(O7,O22)","v":23.8},null,null,"A1","Jan",13.6,50.2,13.6,18.600000000000001]
["Feb",200,{"$f":"AVERAGE(L8,L23)","v":16.649999999999999},{"$f":"MAX(M8,M23)","v":50.1},40,{"$f":"AVERAGE(N8,N23)","v":16.75},{"$f":"MAX(O8,O23)","v":22.7},null,null,null,"Feb",16.8,50.1,16.899999999999999,22.1]
["Mar",200,17.549999999999997,60.3,40,17.600000000000001,27.5,null,null,null,"Mar",18.2,60.3,18.3,27.5,null,"Whole Installation table A5:G18:"]
["Apr",200,17.700000000000003,82.9,40,17.7,27.8,null,null,null,"Apr",19.3,62.4,19.399999999999999,27.8,null,"Mean: for 1/2 hourly and daily periods calculate mean of values across all operational combustion lines for the month"]
["May",200,17.399999999999999,66.400000000000006,40,17.299999999999997,28,null,null,null,"May",16.899999999999999,66.400000000000006,16.899999999999999,28]
["Jun",200,17.149999999999999,72.8,40,17.100000000000001,27.2,null,null,null,"Jun",16.899999999999999,72.8,16.8,27.2]
["Jul",200,18.399999999999999,55.5,40,18.25,27.7,null,null,null,"Jul",17.600000000000001,55.5,17.3,24.6,null,"Maximum: for 1/2 hourly and daily periods use the highest value across all operational combustion lines for the month"]
["Aug",200,18.45,65.099999999999994,40,18.200000000000003,32.5,null,null,null,"Aug",16.399999999999999,61.4,16.3,27.1]
["Sep",200,17.8,75.599999999999994,40,17.899999999999999,30.3,null,null,null,"Sep",15.5,47.7,15.5,27.9]
["Oct",200,15.600000000000001,54.8,40,15.5,30.2,null,null,null,"Oct",12.9,45,12.8,23.1]
["Nov",200,19.100000000000001,88.6,40,19.200000000000003,31,null,null,null,"Nov",18.5,78.400000000000006,18.600000000000001,29]
["Dec",200,18.399999999999999,86.1,40,18.149999999999999,33.9,null,null,null,"Dec",17,55.5,16.8,25.4]
[null,null,null,null,null,null,null,null,null,null,"Annual",{"$f":"AVERAGE(L7:L18)","v":16.633333333333333},{"$f":"MAX(M7:M18)","v":78.400000000000006},{"$f":"AVERAGE(N7:N18)","v":16.600000000000001},{"$f":"MAX(O7:O18)","v":29}]
[]
[null,null,null,null,null,null,null,null,null,{"$f":"+A5","v":2024},"mg/Nm3","Monthly mean of half-hourly averages","Highest half- hourly average","Monthly mean of  daily averages","Highest daily average"]
[null,null,null,null,null,null,null,null,null,"A2","Jan",15.8,91.9,15.7,23.8]
[null,null,null,null,null,null,null,null,null,null,"Feb",16.5,42.8,16.600000000000001,22.7]
[null,null,null,null,null,null,null,null,null,null,"Mar",16.899999999999999,55.5,16.899999999999999,24.6]
[null,null,null,null,null,null,null,null,null,null,"Apr",16.100000000000001,82.9,16,20.9]
[null,null,null,null,null,null,null,null,null,null,"May",17.899999999999999,66.2,17.7,26]
[null,null,null,null,null,null,null,null,null,null,"Jun",17.399999999999999,41.5,17.399999999999999,25.2]
[null,null,null,null,null,null,null,null,null,null,"Jul",19.2,50.5,19.2,27.7]
[null,null,null,null,null,null,null,null,null,null,"Aug",20.5,65.099999999999994,20.100000000000001,32.5]
[null,null,null,null,null,null,null,null,null,null,"Sep",20.100000000000001,75.599999999999994,20.3,30.3]
[null,null,null,null,null,null,null,null,null,null,"Oct",18.3,54.8,18.2,30.2]
[null,null,null,null,null,null,null,null,null,null,"Nov",19.7,88.6,19.8,31]
[null,null,null,null,null,null,null,null,null,null,"Dec",19.8,86.1,19.5,33.9]
[null,null,null,null,null,null,null,null,null,null,"Annual",{"$f":"AVERAGE(L22:L33)","v":18.183333333333334},{"$f":"MAX(M22:M33)","v":91.9},{"$f":"AVERAGE(N22:N33)","v":18.116666666666667},{"$f":"MAX(O22:O33)","v":33.9}]
[]
[null,null,null,null,null,null,null,null,null,{"$f":"+A5","v":2024},"mg/Nm3","Monthly mean of half-hourly averages","Highest half- hourly average","Monthly mean of  daily averages","Highest daily average"]
[null,null,null,null,null,null,null,null,null,"A3","Jan"]
[null,null,null,null,null,null,null,null,null,null,"Feb"]
[null,null,null,null,null,null,null,null,null,null,"Mar"]
[null,null,null,null,null,null,null,null,null,null,"Apr"]
[null,null,null,null,null,null,null,null,null,null,"May"]
[null,null,null,null,null,null,null,null,null,null,"Jun"]
[null,null,null,null,null,null,null,null,null,null,"Jul"]
[null,null,null,null,null,null,null,null,null,null,"Aug"]
[null,null,null,null,null,null,null,null,null,null,"Sep"]
[null,null,null,null,null,null,null,null,null,null,"Oct"]
[null,null,null,null,null,null,null,null,null,null,"Nov"]
["Comments :",null,null,null,null,null,null,null,null,null,"Dec"]
[null,null,null,null,null,null,null,null,null,null,"Annual",{"$f":"AVERAGE(L37:L48)","v":{"$error":"#DIV/0!"}},{"$f":"MAX(M37:M48)","v":0},{"$f":"AVERAGE(N37:N48)","v":{"$error":"#DIV/0!"}},{"$f":"MAX(O37:O48)","v":0}]
[]
[null,null,null,null,null,null,null,null,null,{"$f":"+A5","v":2024},"mg/Nm3","Monthly mean of half-hourly averages","Highest half- hourly average","Monthly mean of  daily averages","Highest daily average"]
[null,null,null,null,null,null,null,null,null,"A4","Jan"]
[null,null,"2025-01-31",null,null,null,null,null,null,null,"Feb"]
[null,null,null,null,null,null,null,null,null,null,"Mar"]
[null,null,null,null,null,null,null,null,null,null,"Apr"]
[null,null,null,null,null,null,null,null,null,null,"May"]
[null,null,null,null,null,null,null,null,null,null,"Jun"]
[null,null,null,null,null,null,null,null,null,null,"Jul"]
[null,null,null,null,null,null,null,null,null,null,"Aug"]
[null,null,null,null,null,null,null,null,null,null,"Sep"]
[null,null,null,null,null,null,null,null,null,null,"Oct"]
[null,null,null,null,null,null,null,null,null,null,"Nov"]
[null,null,null,null,null,null,null,null,null,null,"Dec"]
[null,null,null,null,null,null,null,null,null,null,"Annual",{"$f":"AVERAGE(L52:L63)","v":{"$error":"#DIV/0!"}},{"$f":"MAX(M52:M63)","v":0},{"$f":"AVERAGE(N52:N63)","v":{"$error":"#DIV/0!"}},{"$f":"MAX(O52:O63)","v":0}]
[]
[null,null,null,null,null,null,null,null,null,{"$f":"+A5","v":2024},"mg/Nm3","Monthly mean of half-hourly averages","Highest half- hourly average","Monthly mean of  daily averages","Highest daily average"]
[null,null,null,null,null,null,null,null,null,"A5","Jan"]
[null,null,null,null,null,null,null,null,null,null,"Feb"]
[null,null,null,null,null,null,null,null,null,null,"Mar"]
[null,null,null,null,null,null,null,null,null,null,"Apr"]
[null,null,null,null,null,null,null,null,null,null,"May"]
[null,null,null,null,null,null,null,null,null,null,"Jun"]
[null,null,null,null,null,null,null,null,null,null,"Jul"]
[null,null,null,null,null,null,null,null,null,null,"Aug"]
[null,null,null,null,null,null,null,null,null,null,"Sep"]
[null,null,null,null,null,null,null,null,null,null,"Oct"]
[null,null,null,null,null,null,null,null,null,null,"Nov"]
[null,null,null,null,null,null,null,null,null,null,"Dec"]
[null,null,null,null,null,null,null,null,null,null,"Annual",{"$f":"AVERAGE(L67:L78)","v":{"$error":"#DIV/0!"}},{"$f":"MAX(M67:M78)","v":0},{"$f":"AVERAGE(N67:N78)","v":{"$error":"#DIV/0!"}},{"$f":"MAX(O67:O78)","v":0}]

{"sheet":"NOx","index":17,"n_rows":79,"n_cols":17,"rows_kept":79,"cut":false,"hidden":false,"merged":[[3,16,7,18],[9,16,11,18],[12,16,15,18],[66,9,78,9],[4,1,4,3],[4,4,4,6],[4,9,4,14],[6,9,18,9],[21,9,33,9],[36,9,48,9],[47,0,47,6],[48,0,51,6],[51,9,63,9],[18,4,18,6]]}
[{"$f":"+'Cover Page'!$B$29","v":"Annual Performance Report 2024"},null,null,null,{"$f":"+'Cover Page'!$B$33","v":"Staffordshire Energy Recovery Facility"}]
[]
["Monitoring of Oxides of Nitrogen emissions",null,null,"Whole Installation",null,null,"See  Notes in Cell Q3",null,null,{"$f":"+A3","v":"Monitoring of Oxides of Nitrogen emissions"},null,null,null,"Per Combustion Line",null,null,"Notes:"]
[null,null,null,null,null,null,null,null,null,null,null,null,null,null,null,null,"User to add logic to complete Whole installation, Table A5:G18. From the data in Per Combustion Line, Table J6:O79, subject to No. of lines installed"]
[{"$f":"+'Cover Page'!C39","v":2024},"1/2 Hourly Reference Periods",null,null,"Daily Reference Periods"]
["mg/Nm3","1/2 hourly NOx ELV","Monthly mean of half-hourly averages","Highest half- hourly average","Daily NOx ELV","Monthly mean of  daily averages","Highest daily average",null,null,{"$f":"+A5","v":2024},"mg/Nm3","Monthly mean of half-hourly averages","Highest half- hourly average","Monthly mean of  daily averages","Highest daily average"]
["Jan",400,{"$f":"AVERAGE(L7,L22)","v":151.80000000000001},{"$f":"MAX(M7,M22)","v":315.10000000000002},180,{"$f":"AVERAGE(N7,N22)","v":151.75},{"$f":"MAX(O7,O22)","v":166},null,null,"A1","Jan",149.1,288.2,149.1,166]
["Feb",400,{"$f":"AVERAGE(L8,L23)","v":149.94999999999999},{"$f":"MAX(M8,M23)","v":300.3},180,{"$f":"AVERAGE(N8,N23)","v":150.05000000000001},{"$f":"MAX(O8,O23)","v":163.5},null,null,null,"Feb",147.9,272.60000000000002,147.80000000000001,163.5]
["Mar",400,149.64999999999998,303.7,180,149.75,160,null,null,null,"Mar",146.19999999999999,298.10000000000002,146.5,156,null,"Whole Installation table A5:G18:"]
["Apr",400,147.14999999999998,296.39999999999998,180,147.35,171.3,null,null,null,"Apr",142.1,289.8,142.1,167.1,null,"Mean: for 1/2 hourly and daily periods calculate mean of values across all operational combustion lines for the month"]
["May",400,153.89999999999998,310.8,180,153.69999999999999,166,null,null,null,"May",150.19999999999999,293,150.19999999999999,164.2]
["Jun",400,155.39999999999998,308.7,180,155.25,169.2,null,null,null,"Jun",154.6,298,154.5,169.2]
["Jul",400,153.05000000000001,271.89999999999998,180,152.9,167.6,null,null,null,"Jul",153.5,271.89999999999998,153.30000000000001,167.6,null,"Maximum: for 1/2 hourly and daily periods use the highest value across all operational combustion lines for the month"]
["Aug",400,152.19999999999999,279.8,180,151.44999999999999,167.6,null,null,null,"Aug",152.6,252.1,151.9,165.1]
["Sep",400,151.5,315.8,180,151.6,166.9,null,null,null,"Sep",144.80000000000001,295,145,163.1]
["Oct",400,144.19999999999999,327.3,180,144.19999999999999,161,null,null,null,"Oct",136.80000000000001,327.3,136.80000000000001,145.4]
["Nov",400,141.85000000000002,293.8,180,141.05000000000001,155.19999999999999,null,null,null,"Nov",141.30000000000001,293.8,140.19999999999999,155.19999999999999]
["Dec",400,143.89999999999998,312.7,180,143.65,156.1,null,null,null,"Dec",144.19999999999999,283.5,143.9,156.1]
[null,null,null,null,null,null,null,null,null,null,"Annual",{"$f":"AVERAGE(L7:L18)","v":146.94166666666663},{"$f":"MAX(M7:M18)","v":327.3},{"$f":"AVERAGE(N7:N18)","v":146.77500000000001},{"$f":"MAX(O7:O18)","v":169.2}]
[]
[null,null,null,null,null,null,null,null,null,{"$f":"+A5","v":2024},"mg/Nm3","Monthly mean of half-hourly averages","Highest half- hourly average","Monthly mean of  daily averages","Highest daily average"]
[null,null,null,null,null,null,null,null,null,"A2","Jan",154.5,315.10000000000002,154.4,161]
[null,null,null,null,null,null,null,null,null,null,"Feb",152,300.3,152.30000000000001,159]
[null,null,null,null,null,null,null,null,null,null,"Mar",153.1,303.7,153,160]
[null,null,null,null,null,null,null,null,null,null,"Apr",152.19999999999999,296.39999999999998,152.6,171.3]
[null,null,null,null,null,null,null,null,null,null,"May",157.6,310.8,157.19999999999999,166]
[null,null,null,null,null,null,null,null,null,null,"Jun",156.19999999999999,308.7,156,164.6]
[null,null,null,null,null,null,null,null,null,null,"Jul",152.6,233.3,152.5,164.6]
[null,null,null,null,null,null,null,null,null,null,"Aug",151.80000000000001,279.8,151,167.6]
[null,null,null,null,null,null,null,null,null,null,"Sep",158.19999999999999,315.8,158.19999999999999,166.9]
[null,null,null,null,null,null,null,null,null,null,"Oct",151.6,309.10000000000002,151.6,161]
[null,null,null,null,null,null,null,null,null,null,"Nov",142.4,284.8,141.9,151.9]
[null,null,null,null,null,null,null,null,null,null,"Dec",143.6,312.7,143.4,152.1]
[null,null,null,null,null,null,null,null,null,null,"Annual",{"$f":"AVERAGE(L22:L33)","v":152.14999999999998},{"$f":"MAX(M22:M33)","v":315.8},{"$f":"AVERAGE(N22:N33)","v":152.00833333333335},{"$f":"MAX(O22:O33)","v":171.3}]
[]
[null,null,null,null,null,null,null,null,null,{"$f":"+A5","v":2024},"mg/Nm3","Monthly mean of half-hourly averages","Highest half- hourly average","Monthly mean of  daily averages","Highest daily average"]
[null,null,null,null,null,null,null,null,null,"A3","Jan"]
[null,null,null,null,null,null,null,null,null,null,"Feb"]
[null,null,null,null,null,null,null,null,null,null,"Mar"]
[null,null,null,null,null,null,null,null,null,null,"Apr"]
[null,null,null,null,null,null,null,null,null,null,"May"]
[null,null,null,null,null,null,null,null,null,null,"Jun"]
[null,null,null,null,null,null,null,null,null,null,"Jul"]
[null,null,null,null,null,null,null,null,null,null,"Aug"]
[null,null,null,null,null,null,null,null,null,null,"Sep"]
[null,null,null,null,null,null,null,null,null,null,"Oct"]
[null,null,null,null,null,null,null,null,null,null,"Nov"]
["Comments :",null,null,null,null,null,null,null,null,null,"Dec"]
[null,null,null,null,null,null,null,null,null,null,"Annual",{"$f":"AVERAGE(L37:L48)","v":{"$error":"#DIV/0!"}},{"$f":"MAX(M37:M48)","v":0},{"$f":"AVERAGE(N37:N48)","v":{"$error":"#DIV/0!"}},{"$f":"MAX(O37:O48)","v":0}]
[]
[null,null,null,null,null,null,null,null,null,{"$f":"+A5","v":2024},"mg/Nm3","Monthly mean of half-hourly averages","Highest half- hourly average","Monthly mean of  daily averages","Highest daily average"]
[null,null,null,null,null,null,null,null,null,"A4","Jan"]
[null,null,"2025-01-31",null,null,null,null,null,null,null,"Feb"]
[null,null,null,null,null,null,null,null,null,null,"Mar"]
[null,null,null,null,null,null,null,null,null,null,"Apr"]
[null,null,null,null,null,null,null,null,null,null,"May"]
[null,null,null,null,null,null,null,null,null,null,"Jun"]
[null,null,null,null,null,null,null,null,null,null,"Jul"]
[null,null,null,null,null,null,null,null,null,null,"Aug"]
[null,null,null,null,null,null,null,null,null,null,"Sep"]
[null,null,null,null,null,null,null,null,null,null,"Oct"]
[null,null,null,null,null,null,null,null,null,null,"Nov"]
[null,null,null,null,null,null,null,null,null,null,"Dec"]
[null,null,null,null,null,null,null,null,null,null,"Annual",{"$f":"AVERAGE(L52:L63)","v":{"$error":"#DIV/0!"}},{"$f":"MAX(M52:M63)","v":0},{"$f":"AVERAGE(N52:N63)","v":{"$error":"#DIV/0!"}},{"$f":"MAX(O52:O63)","v":0}]
[]
[null,null,null,null,null,null,null,null,null,{"$f":"+A5","v":2024},"mg/Nm3","Monthly mean of half-hourly averages","Highest half- hourly average","Monthly mean of  daily averages","Highest daily average"]
[null,null,null,null,null,null,null,null,null,"A5","Jan"]
[null,null,null,null,null,null,null,null,null,null,"Feb"]
[null,null,null,null,null,null,null,null,null,null,"Mar"]
[null,null,null,null,null,null,null,null,null,null,"Apr"]
[null,null,null,null,null,null,null,null,null,null,"May"]
[null,null,null,null,null,null,null,null,null,null,"Jun"]
[null,null,null,null,null,null,null,null,null,null,"Jul"]
[null,null,null,null,null,null,null,null,null,null,"Aug"]
[null,null,null,null,null,null,null,null,null,null,"Sep"]
[null,null,null,null,null,null,null,null,null,null,"Oct"]
[null,null,null,null,null,null,null,null,null,null,"Nov"]
[null,null,null,null,null,null,null,null,null,null,"Dec"]
[null,null,null,null,null,null,null,null,null,null,"Annual",{"$f":"AVERAGE(L67:L78)","v":{"$error":"#DIV/0!"}},{"$f":"MAX(M67:M78)","v":0},{"$f":"AVERAGE(N67:N78)","v":{"$error":"#DIV/0!"}},{"$f":"MAX(O67:O78)","v":0}]

{"sheet":"TOC","index":18,"n_rows":79,"n_cols":17,"rows_kept":79,"cut":false,"hidden":false,"merged":[[3,16,7,18],[9,16,11,18],[12,16,15,18],[66,9,78,9],[4,1,4,3],[4,4,4,6],[4,9,4,14],[6,9,18,9],[21,9,33,9],[36,9,48,9],[47,0,47,6],[48,0,51,6],[51,9,63,9]]}
[{"$f":"+'Cover Page'!$B$29","v":"Annual Performance Report 2024"},null,null,null,{"$f":"+'Cover Page'!$B$33","v":"Staffordshire Energy Recovery Facility"}]
[]
["Monitoring of Total organic carbon emissions",null,null,"Whole Installation",null,null,"See  Notes in Cell Q3",null,null,{"$f":"+A3","v":"Monitoring of Total organic carbon emissions"},null,null,null,"Per Combustion Line",null,null,"Notes:"]
[null,null,null,null,null,null,null,null,null,null,null,null,null,null,null,null,"User to add logic to complete Whole installation, Table A5:G18. From the data in Per Combustion Line, Table J6:O79, subject to No. of lines installed"]
[{"$f":"+'Cover Page'!C39","v":2024},"1/2 Hourly Reference Periods",null,null,"Daily Reference Periods"]
["mg/Nm3","1/2 hourly TOC ELV","Monthly mean of half-hourly averages","Highest half- hourly average","Daily TOC ELV","Monthly mean of  daily averages","Highest daily average",null,null,{"$f":"+A5","v":2024},"mg/Nm3","Monthly mean of half-hourly averages","Highest half- hourly average","Monthly mean of  daily averages","Highest daily average"]
["Jan",20,{"$f":"AVERAGE(L7,L22)","v":0.2},{"$f":"MAX(M7,M22)","v":2.2999999999999998},10,{"$f":"AVERAGE(N7,N22)","v":0.2},{"$f":"MAX(O7,O22)","v":0.4},null,null,"A1","Jan",0.2,2.2999999999999998,0.2,0.3]
["Feb",20,{"$f":"AVERAGE(L8,L23)","v":0.4},{"$f":"MAX(M8,M23)","v":12.1},10,{"$f":"AVERAGE(N8,N23)","v":0.35},{"$f":"MAX(O8,O23)","v":1.1000000000000001},null,null,null,"Feb",0.4,3.9,0.3,0.9]
["Mar",20,0.5,3.5,10,0.45,0.7,null,null,null,"Mar",0.5,3.5,0.4,0.7,null,"Whole Installation table A5:G18:"]
["Apr",20,0.45,18.2,10,0.35,0.9,null,null,null,"Apr",0.4,4.8,0.3,0.9,null,"Mean: for 1/2 hourly and daily periods calculate mean of values across all operational combustion lines for the month"]
["May",20,0.35,5,10,0.35,0.9,null,null,null,"May",0.3,3.7,0.3,0.7]
["Jun",20,0.3,6.3,10,0.25,0.5,null,null,null,"Jun",0.3,6.3,0.2,0.4]
["Jul",20,0.25,11.4,10,0.25,0.7,null,null,null,"Jul",0.4,11.4,0.4,0.7,null,"Maximum: for 1/2 hourly and daily periods use the highest value across all operational combustion lines for the month"]
["Aug",20,0.3,4,10,0.2,0.6,null,null,null,"Aug",0.5,4,0.4,0.6]
["Sep",20,0.3,5.9,10,0.2,0.6,null,null,null,"Sep",0.5,3.4,0.4,0.6]
["Oct",20,0.2,1.9,10,0.15,0.5,null,null,null,"Oct",0.4,1.9,0.3,0.5]
["Nov",20,0.35,9.5,10,0.25,0.8,null,null,null,"Nov",0.6,5.9,0.5,0.8]
["Dec",20,0.25,10.199999999999999,10,0.2,0.6,null,null,null,"Dec",0.4,4.9000000000000004,0.4,0.6]
[null,null,null,null,null,null,null,null,null,null,"Annual",{"$f":"AVERAGE(L7:L18)","v":0.40833333333333338},{"$f":"MAX(M7:M18)","v":11.4},{"$f":"AVERAGE(N7:N18)","v":0.34166666666666662},{"$f":"MAX(O7:O18)","v":0.9}]
[]
[null,null,null,null,null,null,null,null,null,{"$f":"+A5","v":2024},"mg/Nm3","Monthly mean of half-hourly averages","Highest half- hourly average","Monthly mean of  daily averages","Highest daily average"]
[null,null,null,null,null,null,null,null,null,"A2","Jan",0.2,1.9,0.2,0.4]
[null,null,null,null,null,null,null,null,null,null,"Feb",0.4,12.1,0.4,1.1000000000000001]
[null,null,null,null,null,null,null,null,null,null,"Mar",0.5,3.4,0.5,0.7]
[null,null,null,null,null,null,null,null,null,null,"Apr",0.5,18.2,0.4,0.9]
[null,null,null,null,null,null,null,null,null,null,"May",0.4,5,0.4,0.9]
[null,null,null,null,null,null,null,null,null,null,"Jun",0.3,2.7,0.3,0.5]
[null,null,null,null,null,null,null,null,null,null,"Jul",0.1,3.5,0.1,0.7]
[null,null,null,null,null,null,null,null,null,null,"Aug",0.1,3.5,0,0.3]
[null,null,null,null,null,null,null,null,null,null,"Sep",0.1,5.9,0,0.4]
[null,null,null,null,null,null,null,null,null,null,"Oct",0,1.2,0,0.1]
[null,null,null,null,null,null,null,null,null,null,"Nov",0.1,9.5,0,0.2]
[null,null,null,null,null,null,null,null,null,null,"Dec",0.1,10.199999999999999,0,0.6]
[null,null,null,null,null,null,null,null,null,null,"Annual",{"$f":"AVERAGE(L22:L33)","v":0.23333333333333336},{"$f":"MAX(M22:M33)","v":18.2},{"$f":"AVERAGE(N22:N33)","v":0.19166666666666665},{"$f":"MAX(O22:O33)","v":1.1000000000000001}]
[]
[null,null,null,null,null,null,null,null,null,{"$f":"+A5","v":2024},"mg/Nm3","Monthly mean of half-hourly averages","Highest half- hourly average","Monthly mean of  daily averages","Highest daily average"]
[null,null,null,null,null,null,null,null,null,"A3","Jan"]
[null,null,null,null,null,null,null,null,null,null,"Feb"]
[null,null,null,null,null,null,null,null,null,null,"Mar"]
[null,null,null,null,null,null,null,null,null,null,"Apr"]
[null,null,null,null,null,null,null,null,null,null,"May"]
[null,null,null,null,null,null,null,null,null,null,"Jun"]
[null,null,null,null,null,null,null,null,null,null,"Jul"]
[null,null,null,null,null,null,null,null,null,null,"Aug"]
[null,null,null,null,null,null,null,null,null,null,"Sep"]
[null,null,null,null,null,null,null,null,null,null,"Oct"]
[null,null,null,null,null,null,null,null,null,null,"Nov"]
["Comments :",null,null,null,null,null,null,null,null,null,"Dec"]
[null,null,null,null,null,null,null,null,null,null,"Annual",{"$f":"AVERAGE(L37:L48)","v":{"$error":"#DIV/0!"}},{"$f":"MAX(M37:M48)","v":0},{"$f":"AVERAGE(N37:N48)","v":{"$error":"#DIV/0!"}},{"$f":"MAX(O37:O48)","v":0}]
[]
[null,null,null,null,null,null,null,null,null,{"$f":"+A5","v":2024},"mg/Nm3","Monthly mean of half-hourly averages","Highest half- hourly average","Monthly mean of  daily averages","Highest daily average"]
[null,null,null,null,null,null,null,null,null,"A4","Jan"]
[null,null,"2025-01-31",null,null,null,null,null,null,null,"Feb"]
[null,null,null,null,null,null,null,null,null,null,"Mar"]
[null,null,null,null,null,null,null,null,null,null,"Apr"]
[null,null,null,null,null,null,null,null,null,null,"May"]
[null,null,null,null,null,null,null,null,null,null,"Jun"]
[null,null,null,null,null,null,null,null,null,null,"Jul"]
[null,null,null,null,null,null,null,null,null,null,"Aug"]
[null,null,null,null,null,null,null,null,null,null,"Sep"]
[null,null,null,null,null,null,null,null,null,null,"Oct"]
[null,null,null,null,null,null,null,null,null,null,"Nov"]
[null,null,null,null,null,null,null,null,null,null,"Dec"]
[null,null,null,null,null,null,null,null,null,null,"Annual",{"$f":"AVERAGE(L52:L63)","v":{"$error":"#DIV/0!"}},{"$f":"MAX(M52:M63)","v":0},{"$f":"AVERAGE(N52:N63)","v":{"$error":"#DIV/0!"}},{"$f":"MAX(O52:O63)","v":0}]
[]
[null,null,null,null,null,null,null,null,null,{"$f":"+A5","v":2024},"mg/Nm3","Monthly mean of half-hourly averages","Highest half- hourly average","Monthly mean of  daily averages","Highest daily average"]
[null,null,null,null,null,null,null,null,null,"A5","Jan"]
[null,null,null,null,null,null,null,null,null,null,"Feb"]
[null,null,null,null,null,null,null,null,null,null,"Mar"]
[null,null,null,null,null,null,null,null,null,null,"Apr"]
[null,null,null,null,null,null,null,null,null,null,"May"]
[null,null,null,null,null,null,null,null,null,null,"Jun"]
[null,null,null,null,null,null,null,null,null,null,"Jul"]
[null,null,null,null,null,null,null,null,null,null,"Aug"]
[null,null,null,null,null,null,null,null,null,null,"Sep"]
[null,null,null,null,null,null,null,null,null,null,"Oct"]
[null,null,null,null,null,null,null,null,null,null,"Nov"]
[null,null,null,null,null,null,null,null,null,null,"Dec"]
[null,null,null,null,null,null,null,null,null,null,"Annual",{"$f":"AVERAGE(L67:L78)","v":{"$error":"#DIV/0!"}},{"$f":"MAX(M67:M78)","v":0},{"$f":"AVERAGE(N67:N78)","v":{"$error":"#DIV/0!"}},{"$f":"MAX(O67:O78)","v":0}]

{"sheet":"Particulates","index":19,"n_rows":79,"n_cols":17,"rows_kept":79,"cut":false,"hidden":false,"merged":[[4,16,8,18],[10,16,12,18],[13,16,16,18],[66,9,78,9],[4,1,4,3],[4,4,4,6],[4,9,4,14],[6,9,18,9],[21,9,33,9],[36,9,48,9],[47,0,47,6],[48,0,51,6],[51,9,63,9],[18,4,18,6]]}
[{"$f":"+'Cover Page'!$B$29","v":"Annual Performance Report 2024"},null,null,null,{"$f":"+'Cover Page'!$B$33","v":"Staffordshire Energy Recovery Facility"}]
[]
["Monitoring of Particulate matter emissions",null,null,"Whole Installation",null,null,"See  Notes in Cell Q3",null,null,{"$f":"+A3","v":"Monitoring of Particulate matter emissions"},null,null,null,"Per Combustion Line",null,null,"Notes:"]
[]
[{"$f":"+'Cover Page'!C39","v":2024},"1/2 Hourly Reference Periods",null,null,"Daily Reference Periods",null,null,null,null,null,null,null,null,null,null,null,"User to add logic to complete Whole installation, Table A5:G18. From the data in Per Combustion Line, Table J6:O79, subject to No. of lines installed"]
["mg/Nm3","1/2 hourly PM ELV","Monthly mean of half-hourly averages","Highest half- hourly average","Daily PM ELV","Monthly mean of  daily averages","Highest daily average",null,null,{"$f":"+A5","v":2024},"mg/Nm3","Monthly mean of half-hourly averages","Highest half- hourly average","Monthly mean of  daily averages","Highest daily average"]
["Jan",30,{"$f":"AVERAGE(L7,L22)","v":0.45},{"$f":"MAX(M7,M22)","v":1.1000000000000001},5,{"$f":"AVERAGE(N7,N22)","v":0.4},{"$f":"MAX(O7,O22)","v":0.8},null,null,"A1","Jan",0.4,1.1000000000000001,0.4,0.8]
["Feb",30,{"$f":"AVERAGE(L8,L23)","v":0.30000000000000004},{"$f":"MAX(M8,M23)","v":4.5},5,{"$f":"AVERAGE(N8,N23)","v":0.30000000000000004},{"$f":"MAX(O8,O23)","v":0.7},null,null,null,"Feb",0.2,0.9,0.2,0.7]
["Mar",30,0.55000000000000004,1.2,5,0.5,0.7,null,null,null,"Mar",0.7,1.2,0.6,0.7]
["Apr",30,0.55000000000000004,1,5,0.5,0.7,null,null,null,"Apr",0.7,1,0.6,0.7,null,"Whole Installation table A5:G18:"]
["May",30,0.55000000000000004,0.9,5,0.55000000000000004,0.7,null,null,null,"May",0.7,0.9,0.7,0.7,null,"Mean: for 1/2 hourly and daily periods calculate mean of values across all operational combustion lines for the month"]
["Jun",30,0.55000000000000004,0.8,5,0.55000000000000004,0.7,null,null,null,"Jun",0.7,0.8,0.7,0.7]
["Jul",30,0.35,0.5,5,0.30000000000000004,0.5,null,null,null,"Jul",0.3,0.3,0.2,0.3]
["Aug",30,0.35,0.5,5,0.30000000000000004,0.5,null,null,null,"Aug",0.3,0.4,0.2,0.3,null,"Maximum: for 1/2 hourly and daily periods use the highest value across all operational combustion lines for the month"]
["Sep",30,0.35,3.4,5,0.30000000000000004,0.5,null,null,null,"Sep",0.3,3.4,0.2,0.3]
["Oct",30,0.4,0.6,5,0.35,0.5,null,null,null,"Oct",0.3,0.4,0.3,0.3]
["Nov",30,0.4,0.7,5,0.30000000000000004,0.5,null,null,null,"Nov",0.3,0.4,0.2,0.3]
["Dec",30,0.4,0.6,5,0.30000000000000004,0.5,null,null,null,"Dec",0.3,0.5,0.2,0.3]
[null,null,null,null,null,null,null,null,null,null,"Annual",{"$f":"AVERAGE(L7:L18)","v":0.43333333333333329},{"$f":"MAX(M7:M18)","v":3.4},{"$f":"AVERAGE(N7:N18)","v":0.37500000000000006},{"$f":"MAX(O7:O18)","v":0.8}]
[]
[null,null,null,null,null,null,null,null,null,{"$f":"+A5","v":2024},"mg/Nm3","Monthly mean of half-hourly averages","Highest half- hourly average","Monthly mean of  daily averages","Highest daily average"]
[null,null,null,null,null,null,null,null,null,"A2","Jan",0.5,0.6,0.4,0.5]
[null,null,null,null,null,null,null,null,null,null,"Feb",0.4,4.5,0.4,0.5]
[null,null,null,null,null,null,null,null,null,null,"Mar",0.4,0.9,0.4,0.5]
[null,null,null,null,null,null,null,null,null,null,"Apr",0.4,0.5,0.4,0.4]
[null,null,null,null,null,null,null,null,null,null,"May",0.4,0.5,0.4,0.4]
[null,null,null,null,null,null,null,null,null,null,"Jun",0.4,0.5,0.4,0.5]
[null,null,null,null,null,null,null,null,null,null,"Jul",0.4,0.5,0.4,0.5]
[null,null,null,null,null,null,null,null,null,null,"Aug",0.4,0.5,0.4,0.5]
[null,null,null,null,null,null,null,null,null,null,"Sep",0.4,3.2,0.4,0.5]
[null,null,null,null,null,null,null,null,null,null,"Oct",0.5,0.6,0.4,0.5]
[null,null,null,null,null,null,null,null,null,null,"Nov",0.5,0.7,0.4,0.5]
[null,null,null,null,null,null,null,null,null,null,"Dec",0.5,0.6,0.4,0.5]
[null,null,null,null,null,null,null,null,null,null,"Annual",{"$f":"AVERAGE(L22:L33)","v":0.43333333333333329},{"$f":"MAX(M22:M33)","v":4.5},{"$f":"AVERAGE(N22:N33)","v":0.39999999999999997},{"$f":"MAX(O22:O33)","v":0.5}]
[]
[null,null,null,null,null,null,null,null,null,{"$f":"+A5","v":2024},"mg/Nm3","Monthly mean of half-hourly averages","Highest half- hourly average","Monthly mean of  daily averages","Highest daily average"]
[null,null,null,null,null,null,null,null,null,"A3","Jan"]
[null,null,null,null,null,null,null,null,null,null,"Feb"]
[null,null,null,null,null,null,null,null,null,null,"Mar"]
[null,null,null,null,null,null,null,null,null,null,"Apr"]
[null,null,null,null,null,null,null,null,null,null,"May"]
[null,null,null,null,null,null,null,null,null,null,"Jun"]
[null,null,null,null,null,null,null,null,null,null,"Jul"]
[null,null,null,null,null,null,null,null,null,null,"Aug"]
[null,null,null,null,null,null,null,null,null,null,"Sep"]
[null,null,null,null,null,null,null,null,null,null,"Oct"]
[null,null,null,null,null,null,null,null,null,null,"Nov"]
["Comments :",null,null,null,null,null,null,null,null,null,"Dec"]
[null,null,null,null,null,null,null,null,null,null,"Annual",{"$f":"AVERAGE(L37:L48)","v":{"$error":"#DIV/0!"}},{"$f":"MAX(M37:M48)","v":0},{"$f":"AVERAGE(N37:N48)","v":{"$error":"#DIV/0!"}},{"$f":"MAX(O37:O48)","v":0}]
[]
[null,null,null,null,null,null,null,null,null,{"$f":"+A5","v":2024},"mg/Nm3","Monthly mean of half-hourly averages","Highest half- hourly average","Monthly mean of  daily averages","Highest daily average"]
[null,null,null,null,null,null,null,null,null,"A4","Jan"]
[null,null,"2025-01-31",null,null,null,null,null,null,null,"Feb"]
[null,null,null,null,null,null,null,null,null,null,"Mar"]
[null,null,null,null,null,null,null,null,null,null,"Apr"]
[null,null,null,null,null,null,null,null,null,null,"May"]
[null,null,null,null,null,null,null,null,null,null,"Jun"]
[null,null,null,null,null,null,null,null,null,null,"Jul"]
[null,null,null,null,null,null,null,null,null,null,"Aug"]
[null,null,null,null,null,null,null,null,null,null,"Sep"]
[null,null,null,null,null,null,null,null,null,null,"Oct"]
[null,null,null,null,null,null,null,null,null,null,"Nov"]
[null,null,null,null,null,null,null,null,null,null,"Dec"]
[null,null,null,null,null,null,null,null,null,null,"Annual",{"$f":"AVERAGE(L52:L63)","v":{"$error":"#DIV/0!"}},{"$f":"MAX(M52:M63)","v":0},{"$f":"AVERAGE(N52:N63)","v":{"$error":"#DIV/0!"}},{"$f":"MAX(O52:O63)","v":0}]
[]
[null,null,null,null,null,null,null,null,null,{"$f":"+A5","v":2024},"mg/Nm3","Monthly mean of half-hourly averages","Highest half- hourly average","Monthly mean of  daily averages","Highest daily average"]
[null,null,null,null,null,null,null,null,null,"A5","Jan"]
[null,null,null,null,null,null,null,null,null,null,"Feb"]
[null,null,null,null,null,null,null,null,null,null,"Mar"]
[null,null,null,null,null,null,null,null,null,null,"Apr"]
[null,null,null,null,null,null,null,null,null,null,"May"]
[null,null,null,null,null,null,null,null,null,null,"Jun"]
[null,null,null,null,null,null,null,null,null,null,"Jul"]
[null,null,null,null,null,null,null,null,null,null,"Aug"]
[null,null,null,null,null,null,null,null,null,null,"Sep"]
[null,null,null,null,null,null,null,null,null,null,"Oct"]
[null,null,null,null,null,null,null,null,null,null,"Nov"]
[null,null,null,null,null,null,null,null,null,null,"Dec"]
[null,null,null,null,null,null,null,null,null,null,"Annual",{"$f":"AVERAGE(L67:L78)","v":{"$error":"#DIV/0!"}},{"$f":"MAX(M67:M78)","v":0},{"$f":"AVERAGE(N67:N78)","v":{"$error":"#DIV/0!"}},{"$f":"MAX(O67:O78)","v":0}]

{"sheet":"CO 0.5 hourly","index":20,"n_rows":82,"n_cols":17,"rows_kept":82,"cut":false,"hidden":true,"merged":[[4,0,5,6],[6,16,10,18],[12,16,14,18],[15,16,18,18],[69,9,81,9],[7,1,7,3],[7,4,7,6],[7,9,7,14],[9,9,21,9],[24,9,36,9],[39,9,51,9],[50,0,50,6],[51,0,54,6],[54,9,66,9]]}
[{"$f":"+'Cover Page'!$B$29","v":"Annual Performance Report 2024"},null,null,null,{"$f":"+'Cover Page'!$B$33","v":"Staffordshire Energy Recovery Facility"}]
[]
["Monitoring of Carbon Monoxide (half hourly)",null,null,"Whole Installation",null,null,"See  Notes in Cell Q3",null,null,{"$f":"+A3","v":"Monitoring of Carbon Monoxide (half hourly)"},null,null,null,"Per Combustion Line",null,null,"Notes:"]
[]
["Please complete this tab for your plant if you have 1/2 hourly CO ELVs; otherwise, leave it blank and complete the CO 95% 10 min tab"]
[]
[null,null,null,null,null,null,null,null,null,null,null,null,null,null,null,null,"User to add logic to complete Whole installation, Table A5:G18. From the data in Per Combustion Line, Table J6:O79, subject to No. of lines installed"]
[{"$f":"+'Cover Page'!C39","v":2024},"1/2 Hourly Reference Periods",null,null,"Daily Reference Periods"]
["mg/Nm3","1/2 hourly CO ELV","Monthly mean of half-hourly averages","Highest half- hourly average","Daily CO ELV","Monthly mean of  daily averages","Highest daily average",null,null,{"$f":"+A8","v":2024},"mg/Nm3","Monthly mean of half-hourly averages","Highest half- hourly average","Monthly mean of  daily averages","Highest daily average"]
["Jan",100,null,null,50,null,null,null,null,"A1","Jan"]
["Feb",{"$f":"+B10","v":100},null,null,{"$f":"+E10","v":50},null,null,null,null,null,"Feb"]
["Mar",{"$f":"+B11","v":100},null,null,{"$f":"+E11","v":50},null,null,null,null,null,"Mar",null,null,null,null,null,"Whole Installation table A5:G18:"]
["Apr",100,null,null,50,null,null,null,null,null,"Apr",null,null,null,null,null,"Mean: for 1/2 hourly and daily periods calculate mean of values across all operational combustion lines for the month"]
["May",100,null,null,50,null,null,null,null,null,"May"]
["Jun",100,null,null,50,null,null,null,null,null,"Jun"]
["Jul",100,null,null,50,null,null,null,null,null,"Jul",null,null,null,null,null,"Maximum: for 1/2 hourly and daily periods use the highest value across all operational combustion lines for the month"]
["Aug",100,null,null,50,null,null,null,null,null,"Aug"]
["Sep",100,null,null,50,null,null,null,null,null,"Sep"]
["Oct",100,null,null,50,null,null,null,null,null,"Oct"]
["Nov",100,null,null,50,null,null,null,null,null,"Nov"]
["Dec",100,null,null,50,null,null,null,null,null,"Dec"]
[null,null,null,null,null,null,null,null,null,null,"Annual",{"$f":"AVERAGE(L10:L21)","v":{"$error":"#DIV/0!"}},{"$f":"MAX(M10:M21)","v":0},{"$f":"AVERAGE(N10:N21)","v":{"$error":"#DIV/0!"}},{"$f":"MAX(O10:O21)","v":0}]
[]
[null,null,null,null,null,null,null,null,null,{"$f":"+A8","v":2024},"mg/Nm3","Monthly mean of half-hourly averages","Highest half- hourly average","Monthly mean of  daily averages","Highest daily average"]
[null,null,null,null,null,null,null,null,null,"A2","Jan"]
[null,null,null,null,null,null,null,null,null,null,"Feb"]
[null,null,null,null,null,null,null,null,null,null,"Mar"]
[null,null,null,null,null,null,null,null,null,null,"Apr"]
[null,null,null,null,null,null,null,null,null,null,"May"]
[null,null,null,null,null,null,null,null,null,null,"Jun"]
[null,null,null,null,null,null,null,null,null,null,"Jul"]
[null,null,null,null,null,null,null,null,null,null,"Aug"]
[null,null,null,null,null,null,null,null,null,null,"Sep"]
[null,null,null,null,null,null,null,null,null,null,"Oct"]
[null,null,null,null,null,null,null,null,null,null,"Nov"]
[null,null,null,null,null,null,null,null,null,null,"Dec"]
[null,null,null,null,null,null,null,null,null,null,"Annual",{"$f":"AVERAGE(L25:L36)","v":{"$error":"#DIV/0!"}},{"$f":"MAX(M25:M36)","v":0},{"$f":"AVERAGE(N25:N36)","v":{"$error":"#DIV/0!"}},{"$f":"MAX(O25:O36)","v":0}]
[]
[null,null,null,null,null,null,null,null,null,{"$f":"+A8","v":2024},"mg/Nm3","Monthly mean of half-hourly averages","Highest half- hourly average","Monthly mean of  daily averages","Highest daily average"]
[null,null,null,null,null,null,null,null,null,"A3","Jan"]
[null,null,null,null,null,null,null,null,null,null,"Feb"]
[null,null,null,null,null,null,null,null,null,null,"Mar"]
[null,null,null,null,null,null,null,null,null,null,"Apr"]
[null,null,null,null,null,null,null,null,null,null,"May"]
[null,null,null,null,null,null,null,null,null,null,"Jun"]
[null,null,null,null,null,null,null,null,null,null,"Jul"]
[null,null,null,null,null,null,null,null,null,null,"Aug"]
[null,null,null,null,null,null,null,null,null,null,"Sep"]
[null,null,null,null,null,null,null,null,null,null,"Oct"]
[null,null,null,null,null,null,null,null,null,null,"Nov"]
["Comments :",null,null,null,null,null,null,null,null,null,"Dec"]
[null,null,null,null,null,null,null,null,null,null,"Annual",{"$f":"AVERAGE(L40:L51)","v":{"$error":"#DIV/0!"}},{"$f":"MAX(M40:M51)","v":0},{"$f":"AVERAGE(N40:N51)","v":{"$error":"#DIV/0!"}},{"$f":"MAX(O40:O51)","v":0}]
[]
[null,null,null,null,null,null,null,null,null,{"$f":"+A8","v":2024},"mg/Nm3","Monthly mean of half-hourly averages","Highest half- hourly average","Monthly mean of  daily averages","Highest daily average"]
[null,null,null,null,null,null,null,null,null,"A4","Jan"]
[null,null,null,null,null,null,null,null,null,null,"Feb"]
[null,null,null,null,null,null,null,null,null,null,"Mar"]
[null,null,null,null,null,null,null,null,null,null,"Apr"]
[null,null,null,null,null,null,null,null,null,null,"May"]
[null,null,null,null,null,null,null,null,null,null,"Jun"]
[null,null,null,null,null,null,null,null,null,null,"Jul"]
[null,null,null,null,null,null,null,null,null,null,"Aug"]
[null,null,null,null,null,null,null,null,null,null,"Sep"]
[null,null,null,null,null,null,null,null,null,null,"Oct"]
[null,null,null,null,null,null,null,null,null,null,"Nov"]
[null,null,null,null,null,null,null,null,null,null,"Dec"]
[null,null,null,null,null,null,null,null,null,null,"Annual",{"$f":"AVERAGE(L55:L66)","v":{"$error":"#DIV/0!"}},{"$f":"MAX(M55:M66)","v":0},{"$f":"AVERAGE(N55:N66)","v":{"$error":"#DIV/0!"}},{"$f":"MAX(O55:O66)","v":0}]
[]
[null,null,null,null,null,null,null,null,null,{"$f":"+A8","v":2024},"mg/Nm3","Monthly mean of half-hourly averages","Highest half- hourly average","Monthly mean of  daily averages","Highest daily average"]
[null,null,null,null,null,null,null,null,null,"A5","Jan"]
[null,null,null,null,null,null,null,null,null,null,"Feb"]
[null,null,null,null,null,null,null,null,null,null,"Mar"]
[null,null,null,null,null,null,null,null,null,null,"Apr"]
[null,null,null,null,null,null,null,null,null,null,"May"]
[null,null,null,null,null,null,null,null,null,null,"Jun"]
[null,null,null,null,null,null,null,null,null,null,"Jul"]
[null,null,null,null,null,null,null,null,null,null,"Aug"]
[null,null,null,null,null,null,null,null,null,null,"Sep"]
[null,null,null,null,null,null,null,null,null,null,"Oct"]
[null,null,null,null,null,null,null,null,null,null,"Nov"]
[null,null,null,null,null,null,null,null,null,null,"Dec"]
[null,null,null,null,null,null,null,null,null,null,"Annual",{"$f":"AVERAGE(L70:L81)","v":{"$error":"#DIV/0!"}},{"$f":"MAX(M70:M81)","v":0},{"$f":"AVERAGE(N70:N81)","v":{"$error":"#DIV/0!"}},{"$f":"MAX(O70:O81)","v":0}]

{"sheet":"CO 95% 10 min","index":21,"n_rows":82,"n_cols":19,"rows_kept":82,"cut":false,"hidden":false,"merged":[[4,0,5,7],[6,18,10,20],[12,18,14,20],[15,18,18,20],[69,10,81,10],[7,1,7,4],[7,5,7,7],[7,10,7,16],[9,10,21,10],[24,10,36,10],[39,10,51,10],[50,0,50,7],[51,0,54,7],[54,10,66,10]]}
[{"$f":"+'Cover Page'!$B$29","v":"Annual Performance Report 2024"},null,null,null,{"$f":"+'Cover Page'!$B$33","v":"Staffordshire Energy Recovery Facility"}]
[]
["Monitoring of Carbon Monoxide (10-minute avg)",null,null,null,"Whole Installation",null,null,"See  Notes in Cell S3",null,{"$f":"+A3","v":"Monitoring of Carbon Monoxide (10-minute avg)"},null,null,null,null,"Per Combustion Line",null,"Notes:",null,"Notes:"]
[]
["Please complete this tab for your plant if you have 10-minute average CO ELVs; otherwise, leave it blank and complete the CO 0.5 hourly tab"]
[]
[null,null,null,null,null,null,null,null,null,null,null,null,null,null,null,null,null,null,"User to add logic to complete Whole installation, Table A5:H18. From the data in Per Combustion Line, Table K6:Q79, subject to No. of lines installed"]
[{"$f":"+'Cover Page'!C39","v":2024},"10-minute Reference Periods",null,null,null,"Daily Reference Periods"]
["mg/Nm3","95%ile 10-min avg CO ELV","Highest daily 95%ile 10-min average","Monthly mean of 10-min averages","Highest 10-min average","Daily CO ELV","Monthly mean of  daily averages","Highest daily average",null,null,{"$f":"+A8","v":2024},"mg/Nm3","Highest daily 95%ile 10-min average","Monthly mean of 10-min averages","Highest 10-min average","Monthly mean of  daily averages","Highest daily average"]
["Jan",150,{"$f":"MAX(M10,M25)","v":5.5},{"$f":"AVERAGE(N10,N25)","v":3.3},{"$f":"MAX(O10,O25)","v":218.9},50,{"$f":"AVERAGE(P10,P25)","v":3.2},{"$f":"MAX(Q10,Q25)","v":5.5},null,null,"A1","Jan",5,2.9,218.9,2.8,4.3]
["Feb",{"$f":"+B10","v":150},{"$f":"MAX(M11,M26)","v":10.6},{"$f":"AVERAGE(N11,N26)","v":3.2},{"$f":"MAX(O11,O26)","v":222.8},{"$f":"+F10","v":50},{"$f":"AVERAGE(P11,P26)","v":3.1500000000000004},{"$f":"MAX(Q11,Q26)","v":5.6},null,null,null,"Feb",10.6,3.1,222.8,3.1,5.6]
["Mar",{"$f":"+B11","v":150},9.4,3.55,445.5,{"$f":"+F11","v":50},3.5,9,null,null,null,"Mar",7.5,3.3,432.7,3.2,9,null,"Whole Installation table A5:H18:"]
["Apr",150,8.3000000000000007,3.2,507.7,50,3.1500000000000004,8.1999999999999993,null,null,null,"Apr",8.3000000000000007,2.8,159,2.7,4.7,null,"Mean: for 10-min and daily periods use average of all operational combustion lines."]
["May",150,8,2.8,294.7,50,2.8,5.2,null,null,null,"May",6.3,2.6,237.2,2.6,5.2]
["Jun",150,4.2,3,430.7,50,2.9000000000000004,10.1,null,null,null,"Jun",3.9,2.8,390.7,2.7,6.3]
["Jul",150,7.4,2,337.4,50,1.85,4.5999999999999996,null,null,null,"Jul",3.3,2,337.4,1.8,3.5,null,"Maximum: for 10-min and daily periods use the highest of all operational combustion lines in any month."]
["Aug",150,6.3,1.9,420.5,50,1.7999999999999998,4.5,null,null,null,"Aug",5.0999999999999996,1.8,131,1.7,2.8]
["Sep",150,11.9,2.5,529.29999999999995,50,2.4000000000000004,5.9,null,null,null,"Sep",11.9,2.2000000000000002,174.1,2.1,4.0999999999999996]
["Oct",150,11.2,2.9,281.10000000000002,50,2.85,5.6,null,null,null,"Oct",4.5999999999999996,2.5,141.4,2.5,3.8]
["Nov",150,13.3,3.55,262.2,50,3.55,9.1,null,null,null,"Nov",13.3,3,262.2,3,9.1]
["Dec",150,5.9,2.85,344.5,50,2.8,7.1,null,null,null,"Dec",4.3,2,266,2,3.3]
[null,null,null,null,null,null,null,null,null,null,null,"Annual",{"$f":"AVERAGE(M10:M21)","v":7.0083333333333329},{"$f":"AVERAGE(N10:N21)","v":2.5833333333333335},{"$f":"MAX(O10:O21)","v":432.7},{"$f":"AVERAGE(P10:P21)","v":2.5166666666666671},{"$f":"MAX(Q10:Q21)","v":9.1}]
[]
[null,null,null,null,null,null,null,null,null,null,{"$f":"+A8","v":2024},"mg/Nm3","Highest daily 95%ile 10-min average","Monthly mean of 10-min averages","Highest 10-min average","Monthly mean of  daily averages","Highest daily average"]
[null,null,null,null,null,null,null,null,null,null,"A2","Jan",5.5,3.7,198.5,3.6,5.5]
[null,null,null,null,null,null,null,null,null,null,null,"Feb",7.8,3.3,207.7,3.2,5]
[null,null,null,null,null,null,null,null,null,null,null,"Mar",9.4,3.8,445.5,3.8,7.1]
[null,null,null,null,null,null,null,null,null,null,null,"Apr",4.5,3.6,507.7,3.6,8.1999999999999993]
[null,null,null,null,null,null,null,null,null,null,null,"May",8,3,294.7,3,5.2]
[null,null,null,null,null,null,null,null,null,null,null,"Jun",4.2,3.2,430.7,3.1,10.1]
[null,null,null,null,null,null,null,null,null,null,null,"Jul",7.4,2,271.39999999999998,1.9,4.5999999999999996]
[null,null,null,null,null,null,null,null,null,null,null,"Aug",6.3,2,420.5,1.9,4.5]
[null,null,null,null,null,null,null,null,null,null,null,"Sep",8.6,2.8,529.29999999999995,2.7,5.9]
[null,null,null,null,null,null,null,null,null,null,null,"Oct",11.2,3.3,281.10000000000002,3.2,5.6]
[null,null,null,null,null,null,null,null,null,null,null,"Nov",11.1,4.0999999999999996,192.7,4.0999999999999996,6.9]
[null,null,null,null,null,null,null,null,null,null,null,"Dec",5.9,3.7,344.5,3.6,7.1]
[null,null,null,null,null,null,null,null,null,null,null,"Annual",{"$f":"AVERAGE(M25:M36)","v":7.4916666666666671},{"$f":"AVERAGE(N25:N36)","v":3.2083333333333335},{"$f":"MAX(O25:O36)","v":529.29999999999995},{"$f":"AVERAGE(P25:P36)","v":3.1416666666666671},{"$f":"MAX(Q25:Q36)","v":10.1}]
[]
[null,null,null,null,null,null,null,null,null,null,{"$f":"+A8","v":2024},"mg/Nm3","Highest daily 95%ile 10-min average","Monthly mean of 10-min averages","Highest 10-min average","Monthly mean of  daily averages","Highest daily average"]
[null,null,null,null,null,null,null,null,null,null,"A3","Jan"]
[null,null,null,null,null,null,null,null,null,null,null,"Feb"]
[null,null,null,null,null,null,null,null,null,null,null,"Mar"]
[null,null,null,null,null,null,null,null,null,null,null,"Apr"]
[null,null,null,null,null,null,null,null,null,null,null,"May"]
[null,null,null,null,null,null,null,null,null,null,null,"Jun"]
[null,null,null,null,null,null,null,null,null,null,null,"Jul"]
[null,null,null,null,null,null,null,null,null,null,null,"Aug"]
[null,null,null,null,null,null,null,null,null,null,null,"Sep"]
[null,null,null,null,null,null,null,null,null,null,null,"Oct"]
[null,null,null,null,null,null,null,null,null,null,null,"Nov"]
["Comments :",null,null,null,null,null,null,null,null,null,null,"Dec"]
["Environment Agency explanatory note: The 10-minute average ELV is based on the “95th percentile”. In this case this means that 95% of the 10 minute averages in the relevant 24-hour period (i.e. 137) must be below 150 mg/Nm3, and 5% (i.e. 7) are allowed to be any value above 150 mg/Nm3. Whilst we expect operators to minimise CO emissions at all times, it is perfectly acceptable for the value of the maximum 10-minute average to be above 150 mg/Nm3, provided the 95th percentile ELV has been met for that period. ",null,null,null,null,null,null,null,null,null,null,"Annual",{"$f":"AVERAGE(M40:M51)","v":{"$error":"#DIV/0!"}},null,{"$f":"MAX(O40:O51)","v":0},{"$f":"AVERAGE(P40:P51)","v":{"$error":"#DIV/0!"}},{"$f":"MAX(Q40:Q51)","v":0}]
[]
[null,null,null,null,null,null,null,null,null,null,{"$f":"+A8","v":2024},"mg/Nm3","Highest daily 95%ile 10-min average","Monthly mean of 10-min averages","Highest 10-min average","Monthly mean of  daily averages","Highest daily average"]
[null,null,null,null,null,null,null,null,null,null,"A4","Jan"]
[null,null,null,null,null,null,null,null,null,null,null,"Feb"]
[null,null,null,null,null,null,null,null,null,null,null,"Mar"]
[null,null,null,null,null,null,null,null,null,null,null,"Apr"]
[null,null,null,null,null,null,null,null,null,null,null,"May"]
[null,null,null,null,null,null,null,null,null,null,null,"Jun"]
[null,null,null,null,null,null,null,null,null,null,null,"Jul"]
[null,null,null,null,null,null,null,null,null,null,null,"Aug"]
[null,null,null,null,null,null,null,null,null,null,null,"Sep"]
[null,null,null,null,null,null,null,null,null,null,null,"Oct"]
[null,null,null,null,null,null,null,null,null,null,null,"Nov"]
[null,null,null,null,null,null,null,null,null,null,null,"Dec"]
[null,null,null,null,null,null,null,null,null,null,null,"Annual",{"$f":"AVERAGE(M55:M66)","v":{"$error":"#DIV/0!"}},null,{"$f":"MAX(O55:O66)","v":0},{"$f":"AVERAGE(P55:P66)","v":{"$error":"#DIV/0!"}},{"$f":"MAX(Q55:Q66)","v":0}]
[]
[null,null,null,null,null,null,null,null,null,null,{"$f":"+A8","v":2024},"mg/Nm3","95%ile 10-min avg maximum","Monthly CO 10-min avg mean","10-min avg maximum","Monthly daily mean","Monthly daily maximum"]
[null,null,null,null,null,null,null,null,null,null,"A5","Jan"]
[null,null,null,null,null,null,null,null,null,null,null,"Feb"]
[null,null,null,null,null,null,null,null,null,null,null,"Mar"]
[null,null,null,null,null,null,null,null,null,null,null,"Apr"]
[null,null,null,null,null,null,null,null,null,null,null,"May"]
[null,null,null,null,null,null,null,null,null,null,null,"Jun"]
[null,null,null,null,null,null,null,null,null,null,null,"Jul"]
[null,null,null,null,null,null,null,null,null,null,null,"Aug"]
[null,null,null,null,null,null,null,null,null,null,null,"Sep"]
[null,null,null,null,null,null,null,null,null,null,null,"Oct"]
[null,null,null,null,null,null,null,null,null,null,null,"Nov"]
[null,null,null,null,null,null,null,null,null,null,null,"Dec"]
[null,null,null,null,null,null,null,null,null,null,null,"Annual",{"$f":"AVERAGE(M70:M81)","v":{"$error":"#DIV/0!"}},null,{"$f":"MAX(O70:O81)","v":0},{"$f":"AVERAGE(P70:P81)","v":{"$error":"#DIV/0!"}},{"$f":"MAX(Q70:Q81)","v":0}]

{"sheet":"NH3","index":22,"n_rows":79,"n_cols":17,"rows_kept":79,"cut":false,"hidden":false,"merged":[[3,16,7,18],[9,16,11,18],[12,16,15,18],[66,9,78,9],[4,1,4,3],[4,4,4,6],[4,9,4,14],[6,9,18,9],[21,9,33,9],[36,9,48,9],[47,0,47,6],[48,0,51,6],[51,9,63,9],[18,4,18,6]]}
[{"$f":"+'Cover Page'!$B$29","v":"Annual Performance Report 2024"},null,null,null,{"$f":"+'Cover Page'!$B$33","v":"Staffordshire Energy Recovery Facility"}]
[]
["Monitoring of Ammnonia emissions ",null,null,"Whole Installation",null,null,"See  Notes in Cell Q3",null,null,{"$f":"+A3","v":"Monitoring of Ammnonia emissions "},null,null,null,"Per Combustion Line",null,null,"Notes:"]
[null,null,null,null,null,null,null,null,null,null,null,null,null,null,null,null,"User to add logic to complete Whole installation, Table A5:G18. From the data in Per Combustion Line, Table J6:O79, subject to No. of lines installed"]
[{"$f":"+'Cover Page'!C39","v":2024},"1/2 Hourly Reference Periods",null,null,"Daily Reference Periods"]
["mg/Nm3","1/2 hourly NH3 ELV","Monthly mean of half-hourly averages","Highest half- hourly average","Daily NH3 ELV","Monthly mean of  daily averages","Highest daily average",null,null,{"$f":"+A5","v":2024},"mg/Nm3","Monthly mean of half-hourly averages","Highest half- hourly average","Monthly mean of  daily averages","Highest daily average"]
["Jan","None",{"$f":"AVERAGE(L7,L22)","v":3.1500000000000004},{"$f":"MAX(M7,M22)","v":11.8},15,{"$f":"AVERAGE(N7,N22)","v":3.1},{"$f":"MAX(O7,O22)","v":4.9000000000000004},null,null,"A1","Jan",2.7,6.5,2.6,4.0999999999999996]
["Feb",{"$f":"+B7","v":"None"},{"$f":"AVERAGE(L8,L23)","v":3.55},{"$f":"MAX(M8,M23)","v":8},15,{"$f":"AVERAGE(N8,N23)","v":3.55},{"$f":"MAX(O8,O23)","v":5.3},null,null,null,"Feb",3.1,8,3.1,4.8]
["Mar",{"$f":"+B8","v":"None"},3.75,19.3,15,3.65,5.2,null,null,null,"Mar",3.4,9,3.3,5.2,null,"Whole Installation table A5:G18:"]
["Apr","None",4.25,13,15,4.1999999999999993,6.8,null,null,null,"Apr",4.0999999999999996,12.2,4.0999999999999996,6.8,null,"Mean: for 1/2 hourly and daily periods calculate mean of values across all operational combustion lines for the month"]
["May","None",3.75,11.3,15,3.6500000000000004,5.2,null,null,null,"May",3.7,11.3,3.6,5.2]
["Jun","None",3.45,12.2,15,3.45,5,null,null,null,"Jun",3.3,11.6,3.3,5]
["Jul","None",2.9000000000000004,11.6,15,2.85,5.3,null,null,null,"Jul",3.7,11.6,3.7,5.3,null,"Maximum: for 1/2 hourly and daily periods use the highest value across all operational combustion lines for the month"]
["Aug","None",2.5,16.600000000000001,15,2.4,4.5,null,null,null,"Aug",2.9,16.600000000000001,2.8,4.5]
["Sep","None",3.3499999999999996,16.100000000000001,15,3.25,7.5,null,null,null,"Sep",4.0999999999999996,16.100000000000001,3.9,7.5]
["Oct","None",4.6500000000000004,12.6,15,4.6500000000000004,7.9,null,null,null,"Oct",5.0999999999999996,12.6,5.0999999999999996,7.9]
["Nov","None",5.5,16.5,15,5.45,8.1999999999999993,null,null,null,"Nov",5.7,16.5,5.7,8.1]
["Dec","None",4.55,13,15,4.55,7.6,null,null,null,"Dec",4.8,13,4.8,7.6]
[null,null,null,null,null,null,null,null,null,null,"Annual",{"$f":"AVERAGE(L7:L18)","v":3.8833333333333333},{"$f":"MAX(M7:M18)","v":16.600000000000001},{"$f":"AVERAGE(N7:N18)","v":3.8333333333333335},{"$f":"MAX(O7:O18)","v":8.1}]
[]
[null,null,null,null,null,null,null,null,null,{"$f":"+A5","v":2024},"mg/Nm3","Monthly mean of half-hourly averages","Highest half- hourly average","Monthly mean of  daily averages","Highest daily average"]
[null,null,null,null,null,null,null,null,null,"A2","Jan",3.6,11.8,3.6,4.9000000000000004]
[null,null,null,null,null,null,null,null,null,null,"Feb",4,8,4,5.3]
[null,null,null,null,null,null,null,null,null,null,"Mar",4.0999999999999996,19.3,4,5.0999999999999996]
[null,null,null,null,null,null,null,null,null,null,"Apr",4.4000000000000004,13,4.3,6.8]
[null,null,null,null,null,null,null,null,null,null,"May",3.8,8.6999999999999993,3.7,4.5999999999999996]
[null,null,null,null,null,null,null,null,null,null,"Jun",3.6,12.2,3.6,4.7]
[null,null,null,null,null,null,null,null,null,null,"Jul",2.1,4.5999999999999996,2,2.7]
[null,null,null,null,null,null,null,null,null,null,"Aug",2.1,8.6999999999999993,2,2.8]
[null,null,null,null,null,null,null,null,null,null,"Sep",2.6,7.4,2.6,4]
[null,null,null,null,null,null,null,null,null,null,"Oct",4.2,11.7,4.2,6]
[null,null,null,null,null,null,null,null,null,null,"Nov",5.3,12.1,5.2,8.1999999999999993]
[null,null,null,null,null,null,null,null,null,null,"Dec",4.3,12.8,4.3,6.1]
[null,null,null,null,null,null,null,null,null,null,"Annual",{"$f":"AVERAGE(L22:L33)","v":3.6750000000000003},{"$f":"MAX(M22:M33)","v":19.3},{"$f":"AVERAGE(N22:N33)","v":3.625},{"$f":"MAX(O22:O33)","v":8.1999999999999993}]
[]
[null,null,null,null,null,null,null,null,null,{"$f":"+A5","v":2024},"mg/Nm3","Monthly mean of half-hourly averages","Highest half- hourly average","Monthly mean of  daily averages","Highest daily average"]
[null,null,null,null,null,null,null,null,null,"A3","Jan"]
[null,null,null,null,null,null,null,null,null,null,"Feb"]
[null,null,null,null,null,null,null,null,null,null,"Mar"]
[null,null,null,null,null,null,null,null,null,null,"Apr"]
[null,null,null,null,null,null,null,null,null,null,"May"]
[null,null,null,null,null,null,null,null,null,null,"Jun"]
[null,null,null,null,null,null,null,null,null,null,"Jul"]
[null,null,null,null,null,null,null,null,null,null,"Aug"]
[null,null,null,null,null,null,null,null,null,null,"Sep"]
[null,null,null,null,null,null,null,null,null,null,"Oct"]
[null,null,null,null,null,null,null,null,null,null,"Nov"]
["Comments :",null,null,null,null,null,null,null,null,null,"Dec"]
["An indicated ELV value of zero in the table above means that no ammonia limit is/was set in the permit.  ",null,null,null,null,null,null,null,null,null,"Annual",{"$f":"AVERAGE(L37:L48)","v":{"$error":"#DIV/0!"}},{"$f":"MAX(M37:M48)","v":0},{"$f":"AVERAGE(N37:N48)","v":{"$error":"#DIV/0!"}},{"$f":"MAX(O37:O48)","v":0}]
[]
[null,null,null,null,null,null,null,null,null,{"$f":"+A5","v":2024},"mg/Nm3","Monthly mean of half-hourly averages","Highest half- hourly average","Monthly mean of  daily averages","Highest daily average"]
[null,null,null,null,null,null,null,null,null,"A4","Jan"]
[null,null,"2025-01-31",null,null,null,null,null,null,null,"Feb"]
[null,null,null,null,null,null,null,null,null,null,"Mar"]
[null,null,null,null,null,null,null,null,null,null,"Apr"]
[null,null,null,null,null,null,null,null,null,null,"May"]
[null,null,null,null,null,null,null,null,null,null,"Jun"]
[null,null,null,null,null,null,null,null,null,null,"Jul"]
[null,null,null,null,null,null,null,null,null,null,"Aug"]
[null,null,null,null,null,null,null,null,null,null,"Sep"]
[null,null,null,null,null,null,null,null,null,null,"Oct"]
[null,null,null,null,null,null,null,null,null,null,"Nov"]
[null,null,null,null,null,null,null,null,null,null,"Dec"]
[null,null,null,null,null,null,null,null,null,null,"Annual",{"$f":"AVERAGE(L52:L63)","v":{"$error":"#DIV/0!"}},{"$f":"MAX(M52:M63)","v":0},{"$f":"AVERAGE(N52:N63)","v":{"$error":"#DIV/0!"}},{"$f":"MAX(O52:O63)","v":0}]
[]
[null,null,null,null,null,null,null,null,null,{"$f":"+A5","v":2024},"mg/Nm3","Monthly mean of half-hourly averages","Highest half- hourly average","Monthly mean of  daily averages","Highest daily average"]
[null,null,null,null,null,null,null,null,null,"A5","Jan"]
[null,null,null,null,null,null,null,null,null,null,"Feb"]
[null,null,null,null,null,null,null,null,null,null,"Mar"]
[null,null,null,null,null,null,null,null,null,null,"Apr"]
[null,null,null,null,null,null,null,null,null,null,"May"]
[null,null,null,null,null,null,null,null,null,null,"Jun"]
[null,null,null,null,null,null,null,null,null,null,"Jul"]
[null,null,null,null,null,null,null,null,null,null,"Aug"]
[null,null,null,null,null,null,null,null,null,null,"Sep"]
[null,null,null,null,null,null,null,null,null,null,"Oct"]
[null,null,null,null,null,null,null,null,null,null,"Nov"]
[null,null,null,null,null,null,null,null,null,null,"Dec"]
[null,null,null,null,null,null,null,null,null,null,"Annual",{"$f":"AVERAGE(L67:L78)","v":{"$error":"#DIV/0!"}},{"$f":"MAX(M67:M78)","v":0},{"$f":"AVERAGE(N67:N78)","v":{"$error":"#DIV/0!"}},{"$f":"MAX(O67:O78)","v":0}]

{"sheet":"Template changes log","index":23,"n_rows":53,"n_cols":3,"rows_kept":53,"cut":false,"hidden":false,"merged":[]}
["Log of changes to template (Environment Agency use only)"]
[]
["Date","Description of change","New version number and date"]
["2024-01-16","Air (periodic) tab: corrected default O2 reference from 6 to 11% ","Version 23.5a (for incinerators) - 16/01/2024"]
["2024-09-23","Air (periodic) tab: corrected symbol for Thallium to Tl"]
["2024-09-23","Air (periodic) tab: removed last year's references to different emission limit values applying from 03/12/23 and updated all relevant ELVs"]
["2024-09-23","Tabs for continuously monitored pollutants (HCl, SO2 etc.): changed terminology in table headings to improve clarity"]
["2024-09-23","Tabs for continuously monitored pollutants (HCl, SO2 etc.): removed last year's references to different emission limit values applying from 03/12/23 and updated all relevant ELVs"]
["2024-09-23","Perf 1 tab: updated formula for water usage to report m3 rather than litres and corrected error with formula copying operator name"]
["2024-09-23","Operational Summary tab: table added on start-ups and shut-downs"]
["2024-09-23","Operational Summary tab: table added on dioxins and mercury protocols"]
["2024-09-23","Operational Summary tab: table added on AST, QAL 2 and calibration functions"]
["2024-09-23","CO2 N2O tab: various changes made to notes to reflect the fact that most plants should now have calibrated CEMS and flow meters + some have C14 samplers and more up to date industry data","Version 24a (for incinerators) - 23/09/24"]
["2024-11-08","CO2 N2O tab: Changed the N2O CO2 equivalence factor from 298 to 265 in line with recently updated government greenhouse gas figures: https://www.gov.uk/government/publications/greenhouse-gas-reporting-conversion-factors-2024"]
["2024-11-08","CO2 N2O tab: Added an additional requirement for municipal EfW plants to state the yearly average biogenic percentage of the waste by mass, and reference to a document which sets out a methodology for calculating NCV of waste from the results of C14 sampling."]
["2024-11-08","Permit Compliance tab: Two additional columns added + explanatory notes to the table entitled \"Summary of non-compliances under the permit\" to allow CCS scores to be stated where relevant. "]
["2024-11-08","Residue Quality tab: Note added explaining application of TOC and LOI limits and asking operators to report both metrics where measured. ","Version 24.1a (for incinerators) - 08/11/24"]
["2024-11-27","Operational Summary tab: Tables on mercury & dioxins protocols and ASTs removed (covered instead by new tables added to updated Air 9 periodic monitoring form)","Version 24.2a (for incinerators) - 27/11/24"]
[]
[]
[]
[]
[]
[]
[]
[]
[]
[]
[]
[]
[]
[]
[]
[]
[]
[]
[]
[]
[]
[]
[]
[]
[]
[]
[]
[]
[]
[]
[]
[]
[]
[]
[null,null,"2025-01-31"]